{"text_format":"3","workbook":"xlsx","n_sheets":6,"sheets":["Informations","TDB_ETAB","TDB_CLASSES_FRA","TDB_CLASSES_MATHS","CAP_FRANCAIS","CAP_MATHS"],"not_rendered":{"charts":49,"macros":1,"external_links":1,"defined_names":4},"read":"whole","date_system":"1900"}

{"sheet":"Informations","index":0,"n_rows":43,"n_cols":6,"rows_kept":43}
["Informations De l'établissement :",null,{"$f":"LEFT(CAP_MATHS!C2,11)","v":""}]
[]
["1) Répartition des élèves évalués par classe"]
[]
["Classes *","Effectifs\nfrançais","%\nfrançais","Effectifs\nmaths","%\nmaths"]
[null,{"$f":"COUNTIF(CAP_FRANCAIS!$A:$A,$A6)","v":0},{"$f":"B6/B$19","v":{"$error":"#DIV/0!"}},{"$f":"COUNTIF(CAP_MATHS!A:A,$A6)","v":0},{"$f":"D6/D$19","v":{"$error":"#DIV/0!"}}]
[null,{"$f":"COUNTIF(CAP_FRANCAIS!$A:$A,$A7)","v":0},{"$error":"#DIV/0!"},{"$f":"COUNTIF(CAP_MATHS!A:A,$A7)","v":0},{"$error":"#DIV/0!"}]
[null,{"$f":"COUNTIF(CAP_FRANCAIS!$A:$A,$A8)","v":0},{"$error":"#DIV/0!"},{"$f":"COUNTIF(CAP_MATHS!A:A,$A8)","v":0},{"$error":"#DIV/0!"}]
[null,{"$f":"COUNTIF(CAP_FRANCAIS!$A:$A,$A9)","v":0},{"$error":"#DIV/0!"},{"$f":"COUNTIF(CAP_MATHS!A:A,$A9)","v":0},{"$error":"#DIV/0!"}]
[null,{"$f":"COUNTIF(CAP_FRANCAIS!$A:$A,$A10)","v":0},{"$error":"#DIV/0!"},{"$f":"COUNTIF(CAP_MATHS!A:A,$A10)","v":0},{"$error":"#DIV/0!"}]
[null,{"$f":"COUNTIF(CAP_FRANCAIS!$A:$A,$A11)","v":0},{"$error":"#DIV/0!"},{"$f":"COUNTIF(CAP_MATHS!A:A,$A11)","v":0},{"$error":"#DIV/0!"}]
[null,{"$f":"COUNTIF(CAP_FRANCAIS!$A:$A,$A12)","v":0},{"$error":"#DIV/0!"},{"$f":"COUNTIF(CAP_MATHS!A:A,$A12)","v":0},{"$error":"#DIV/0!"}]
[null,{"$f":"COUNTIF(CAP_FRANCAIS!$A:$A,$A13)","v":0},{"$error":"#DIV/0!"},{"$f":"COUNTIF(CAP_MATHS!A:A,$A13)","v":0},{"$error":"#DIV/0!"}]
[null,{"$f":"COUNTIF(CAP_FRANCAIS!$A:$A,$A14)","v":0},{"$error":"#DIV/0!"},{"$f":"COUNTIF(CAP_MATHS!A:A,$A14)","v":0},{"$error":"#DIV/0!"}]
[null,{"$f":"COUNTIF(CAP_FRANCAIS!$A:$A,$A15)","v":0},{"$error":"#DIV/0!"},{"$f":"COUNTIF(CAP_MATHS!A:A,$A15)","v":0},{"$error":"#DIV/0!"}]
[null,{"$f":"COUNTIF(CAP_FRANCAIS!$A:$A,$A16)","v":0},{"$error":"#DIV/0!"},{"$f":"COUNTIF(CAP_MATHS!A:A,$A16)","v":0},{"$error":"#DIV/0!"}]
[null,{"$f":"COUNTIF(CAP_FRANCAIS!$A:$A,$A17)","v":0},{"$error":"#DIV/0!"},{"$f":"COUNTIF(CAP_MATHS!A:A,$A17)","v":0},{"$error":"#DIV/0!"}]
[null,{"$f":"COUNTIF(CAP_FRANCAIS!$A:$A,$A18)","v":0},{"$error":"#DIV/0!"},{"$f":"COUNTIF(CAP_MATHS!A:A,$A18)","v":0},{"$error":"#DIV/0!"}]
["Total établissement",{"$f":"SUM(B6:B18)","v":0},{"$error":"#DIV/0!"},{"$f":"SUM(D6:D18)","v":0},{"$error":"#DIV/0!"}]
["* noms des classes à compléter comme suit :"]
["     - saisir à l'identique les noms de classes utilisés par ASP (vous pouvez les retrouver dans l'onglet \"CAP_FRANCAIS\")"]
["     - ne pas modifier les lignes non utilisées"]
[]
[]
["2) Résultats par classe exprimés en effectifs d'élèves selon les niveaux de maîtrise suivants :"]
["Français","Mathématiques",null,"Domaines élèves superieur"]
["Besoin de consolider les compétences élémentaires en compréhension","Maîtrise insuffisante",null,"à besoins"]
["Capacité à comprendre les documents proposés","Maîtrise partielle ou totale",null,"fragile"]
["Fluence",null,null,"satisfaisant"]
["Difficulté détectée"]
["Maîtrise correcte"]
[]
[]
["Résultats par classe exprimés en pourcentages mis en forme en fonction des résultats des élèves comparés à ceux de l'établissement :"]
[]
["- Pour les niveaux de maîtrise insuffisante et fragile :"]
[null,"En rouge ","les taux de ",{"$f":"E42","v":5},"% supérieur à ceux de l'ensemble de l'établissement"]
[null,"En vert","les taux de ",{"$f":"E42","v":5},"% inférieur à ceux de l'ensemble de l'établissement "]
["- Pour les niveaux de maîtrise satisfaisante (1 à 3) et très bonne maîtrise, à l'inverse :"]
[null,"En rouge ","les taux de ",{"$f":"E42","v":5},"% inférieur à ceux de l'ensemble de l'établissement"]
[null,"En vert","les taux de ",{"$f":"E42","v":5},"%supérieur à ceux de l'ensemble de l'établissement "]
["Ecart** de taux pour la mise en forme conditionnelle :",{"$nulls":3},5,"%"]
["** Par défaut, l'écart de taux est de 5%. Vous pouvez le modifier en saisissant celui qui vous convient dans la cellule colorée ci-dessus. "]

{"sheet":"TDB_ETAB","index":1,"n_rows":31,"n_cols":11,"rows_kept":31,"merged":[[3,1,3,3],[3,4,3,7],[3,9,3,10],[10,1,10,3],[10,4,10,7],[10,9,10,10],[18,2,18,4],[18,6,18,7],[25,2,25,4],[25,6,25,7]]}
["Tableau de bord de l'établissement :"]
[]
["Français","Répartition des effectifs d'élèves pour chaque compétence"]
[null,"Domaines communs",null,null,"Domaine qui concerne uniquement les élèves dont le score en CE est <  16",{"$nulls":4},"Domaine qui concerne uniquement les élèves dont le score en CE est >=  16"]
["Niveau de maîtrise","Comprendre un support écrit (CE)","Comprendre un document audio","Fluence","Exercice complémentaire \n Associer un groupe de lettres à un son \n","Exercice complémentaire \n Déchiffrer des mots rapidement ","Exercice complémentaire \n Connaître des mots","Exercice complémentaire \n Associer une image à une phrase simple ",null,"Niveau de maîtrise","Comprendre un support écrit "]
["Nb \"Besoin de consolider les compétences élémentaires en lecture\" ou \"Maitrise correcte\" (Fluence)",{"$f":"COUNTIF(CAP_FRANCAIS!D:D,\"Besoin de consolider les compétences élémentaires en compréhension\")","v":0},{"$f":"COUNTIF(CAP_FRANCAIS!E:E,\"Besoin de consolider les compétences élémentaires en compréhension\")","v":0},{"$f":"COUNTIF(CAP_FRANCAIS!K:K,\"Difficulté détectée\")","v":0},{"$f":"COUNTIF(CAP_FRANCAIS!G:G,\"Difficulté détectée\")","v":0},{"$f":"COUNTIF(CAP_FRANCAIS!H:H,\"Difficulté détectée\")","v":0},{"$f":"COUNTIF(CAP_FRANCAIS!I:I,\"Difficulté détectée\")","v":0},{"$f":"COUNTIF(CAP_FRANCAIS!J:J,\"Difficulté détectée\")","v":0},null,"Taux \"à besoins\"",{"$f":"COUNTIF(CAP_FRANCAIS!F:F,\"à besoins\")","v":0}]
["Nb \"Capacité à comprendre les textes proposés\" ou \"Maitrise correcte\" (Fluence)",{"$f":"COUNTIF(CAP_FRANCAIS!D:D,\"Capacité à comprendre les documents proposés\")","v":0},{"$f":"COUNTIF(CAP_FRANCAIS!E:E,\"Capacité à comprendre les documents proposés\")","v":0},{"$f":"COUNTIF(CAP_FRANCAIS!K:K,\"Maîtrise correcte\")","v":0},{"$f":"COUNTIF(CAP_FRANCAIS!G:G,\"Maîtrise correcte\")","v":0},{"$f":"COUNTIF(CAP_FRANCAIS!H:H,\"Maîtrise correcte\")","v":0},{"$f":"COUNTIF(CAP_FRANCAIS!I:I,\"Maîtrise correcte\")","v":0},{"$f":"COUNTIF(CAP_FRANCAIS!J:J,\"Maîtrise correcte\")","v":0},null,"Taux \"fragile\"",{"$f":"COUNTIF(CAP_FRANCAIS!F:F,\"fragile\")","v":0}]
["Total élèves évalués ",{"$f":"SUM(B6:B7)","v":0},{"$f":"SUM(C6:C7)","v":0},0,{"$f":"SUM(E6:E7)","v":0},{"$f":"SUM(F6:F7)","v":0},{"$f":"SUM(G6:G7)","v":0},{"$f":"SUM(H6:H7)","v":0},null,"Taux \"satisfaisant\"",{"$f":"COUNTIF(CAP_FRANCAIS!F:F,\"satisfaisant\")","v":0}]
[{"$nulls":9},"Total élèves évalués ",{"$f":"SUM(K6:K8)","v":0}]
[null,"Répartition des proportions d'élèves pour chaque compétence"]
[null,"Domaines communs",null,null,"Domaine qui concerne uniquement les élèves dont le score en CE est <  16",{"$nulls":4},"Domaine qui concerne uniquement les élèves dont le score en CE est >=  16"]
["Niveau de maîtrise","Comprendre un support écrit (CE)","Comprendre un document audio","Fluence","Exercice complémentaire \n Associer un groupe de lettres à un son \n","Exercice complémentaire \n Déchiffrer des mots rapidement ","Exercice complémentaire \n Connaître des mots","Exercice complémentaire \n Associer une image à une phrase simple ",null,"Niveau de maîtrise","Comprendre un support écrit "]
["Taux \"Besoin de consolider les compétences élémentaires en lecture\"",{"$f":"B6/B$8","v":{"$error":"#DIV/0!"}},{"$f":"C6/C$8","v":{"$error":"#DIV/0!"}},{"$error":"#DIV/0!"},{"$error":"#DIV/0!"},{"$error":"#DIV/0!"},{"$error":"#DIV/0!"},{"$error":"#DIV/0!"},null,"Taux \"à besoins\"",{"$f":"K6/K$9","v":{"$error":"#DIV/0!"}}]
["Taux \"Capacité à comprendre les textes proposés\"",{"$f":"B7/B$8","v":{"$error":"#DIV/0!"}},{"$f":"C7/C$8","v":{"$error":"#DIV/0!"}},{"$error":"#DIV/0!"},{"$error":"#DIV/0!"},{"$error":"#DIV/0!"},{"$error":"#DIV/0!"},{"$error":"#DIV/0!"},null,"Taux \"fragile\"",{"$f":"K7/K$9","v":{"$error":"#DIV/0!"}}]
["Total élèves évalués ",{"$f":"B8/B$8","v":{"$error":"#DIV/0!"}},{"$f":"C8/C$8","v":{"$error":"#DIV/0!"}},{"$error":"#DIV/0!"},{"$error":"#DIV/0!"},{"$error":"#DIV/0!"},{"$error":"#DIV/0!"},{"$error":"#DIV/0!"},null,"Taux \"satisfaisant\"",{"$f":"K8/K$9","v":{"$error":"#DIV/0!"}}]
[{"$nulls":9},"Total élèves évalués ",{"$f":"K9/K$9","v":{"$error":"#DIV/0!"}}]
[]
["Mathématiques","Répartition des effectifs d'élèves"]
[null,"Domaine commun","Domaine qui concerne uniquement les élèves dont le score en RP est <  19",{"$nulls":3},"Domaine qui concerne uniquement les élèves dont le score en RP est >=  19"]
["Niveau de maîtrise","Capacité à utiliser les mathématiques dans le monde réel\nRésolution de problèmes (RP)","Automatismes\nMultiplications et comparaisons de nombres","Automatismes\nPourcentages","Automatismes\nSoustractions",null,"Niveau de maîtrise","Automatismes "]
["Nb \"insuffisante\"",{"$f":"COUNTIF(CAP_MATHS!D:D,\"Maîtrise insuffisante\")","v":0},{"$f":"COUNTIF(CAP_MATHS!F:F,\"Maîtrise insuffisante\")","v":0},{"$f":"COUNTIF(CAP_MATHS!G:G,\"Maîtrise insuffisante\")","v":0},{"$f":"COUNTIF(CAP_MATHS!H:H,\"Maîtrise insuffisante\")","v":0},null,"Nb \"à besoins\"",{"$f":"COUNTIF(CAP_MATHS!E:E,\"à besoins\")","v":0}]
["Nb \"partielle ou totale\"",{"$f":"COUNTIF(CAP_MATHS!D:D,\"Maîtrise partielle ou totale\")","v":0},{"$f":"COUNTIF(CAP_MATHS!F:F,\"Maîtrise partielle ou totale\")","v":0},{"$f":"COUNTIF(CAP_MATHS!G:G,\"Maîtrise partielle ou totale\")","v":0},{"$f":"COUNTIF(CAP_MATHS!H:H,\"Maîtrise partielle ou totale\")","v":0},null,"Nb \"fragile\"",{"$f":"COUNTIF(CAP_MATHS!E:E,\"fragile\")","v":0}]
["Total élèves évalués ",{"$f":"SUM(B21:B22)","v":0},{"$f":"SUM(C21:C22)","v":0},{"$f":"SUM(D21:D22)","v":0},0,null,"Nb \"satisfaisant\"",{"$f":"COUNTIF(CAP_MATHS!E:E,\"satisfaisant\")","v":0}]
[{"$nulls":6},"Total élèves évalués ",{"$f":"SUM(H21:H23)","v":0}]
[null,"Répartition des proportions d'élèves"]
[null,"Domaine commun","Domaine qui concerne uniquement les élèves dont le score en résolution de problèmes est <  19",{"$nulls":3},"Domaine qui concerne uniquement les élèves dont le score en résolution de problèmes est >=  19"]
["Niveau de maîtrise","Capacité à utiliser les mathématiques dans le monde réel\nRésolution de problèmes (RP)","Automatismes\nMultiplications et comparaisons de nombres","Automatismes\nPourcentages","Automatismes\nSoustractions",null,"Niveau de maîtrise","Automatismes "]
["Taux \"insuffisante\"",{"$f":"B21/B$23","v":{"$error":"#DIV/0!"}},{"$f":"C21/C$23","v":{"$error":"#DIV/0!"}},{"$error":"#DIV/0!"},{"$error":"#DIV/0!"},null,"Taux \"à besoins\"",{"$f":"H21/H$24","v":{"$error":"#DIV/0!"}}]
["Taux \"partielle ou totale\"",{"$f":"B22/B$23","v":{"$error":"#DIV/0!"}},{"$f":"C22/C$23","v":{"$error":"#DIV/0!"}},{"$error":"#DIV/0!"},{"$error":"#DIV/0!"},null,"Taux \"fragile\"",{"$f":"H22/H$24","v":{"$error":"#DIV/0!"}}]
["Total élèves évalués ",{"$f":"B23/B$23","v":{"$error":"#DIV/0!"}},{"$f":"C23/C$23","v":{"$error":"#DIV/0!"}},{"$error":"#DIV/0!"},{"$error":"#DIV/0!"},null,"Taux \"satisfaisant\"",{"$error":"#DIV/0!"}]
[{"$nulls":6},"Total élèves évalués ",{"$error":"#DIV/0!"}]

{"sheet":"TDB_CLASSES_FRA","index":2,"n_rows":130,"n_cols":11,"rows_kept":130,"merged":[[3,1,3,3],[3,4,3,7],[3,9,3,10],[9,1,9,3],[9,4,9,7],[10,9,10,10],[15,1,15,3],[15,4,15,7],[17,9,17,10],[22,1,22,3],[22,4,22,7],[23,9,23,10],[28,1,28,3],[28,4,28,7],[30,9,30,10],[36,1,36,3],[36,4,36,7],[37,9,37,10],[42,1,42,3],[42,4,42,7],[44,9,44,10],[51,1,51,3],[51,4,51,7],[52,9,52,10],[57,1,57,3],[57,4,57,7],[59,9,59,10],[67,1,67,3],[67,4,67,7],[68,9,68,10],[73,1,73,3],[73,4,73,7],[75,9,75,10],[83,1,83,3],[83,4,83,7],[84,9,84,10],[89,1,89,3],[89,4,89,7],[91,9,91,10],[100,1,100,3],[100,4,100,7],[101,9,101,10],[106,1,106,3],[106,4,106,7],[108,9,108,10],[116,1,116,3],[116,4,116,7],[117,9,117,10],[122,1,122,3],[122,4,122,7],[124,9,124,10]]}
["Tableau de bord du Lycée :",{"$f":"RIGHT(C1,8)","v":"0"},{"$f":"TDB_ETAB!B1","v":0},null,{"v":0,"d":"0.0%"}]
[]
["Français","Répartition des proportions d'élèves pour chaque compétence (Rappel TDB_ETAB)"]
[null,"Domaines communs",null,null,"Domaine qui concerne uniquement les élèves dont le score en CE est <  16",{"$nulls":4},"Domaine qui concerne uniquement les élèves dont le score en CE est >=  16"]
["Référence : Lycée","Comprendre un support écrit (CE)","Comprendre un document audio","Fluence","Associer un groupe de lettres à un son \n","Déchiffrer des mots rapidement ","Connaître des mots","Associer une image à une phrase simple ",null,"Niveau de maîtrise","Comprendre un support écrit (exercices seconde pro)"]
["Taux\"Besoin de consolider les compétences élémentaires en lecture\" ou \"Difficulté détectée\" (Fluence)",{"$f":"TDB_ETAB!B13","v":{"$error":"#DIV/0!"}},{"$f":"TDB_ETAB!C13","v":{"$error":"#DIV/0!"}},{"$f":"TDB_ETAB!D13","v":{"$error":"#DIV/0!"}},{"$f":"TDB_ETAB!E13","v":{"$error":"#DIV/0!"}},{"$f":"TDB_ETAB!F13","v":{"$error":"#DIV/0!"}},{"$f":"TDB_ETAB!G13","v":{"$error":"#DIV/0!"}},{"$f":"TDB_ETAB!H13","v":{"$error":"#DIV/0!"}},null,"Taux \"à besoins\"",{"$f":"TDB_ETAB!K13","v":{"$error":"#DIV/0!"}}]
["Taux\"Capacité à comprendre les textes proposés\" ou \"Maitrise correcte\" (Fluence)",{"$f":"TDB_ETAB!B14","v":{"$error":"#DIV/0!"}},{"$f":"TDB_ETAB!C14","v":{"$error":"#DIV/0!"}},{"$f":"TDB_ETAB!D14","v":{"$error":"#DIV/0!"}},{"$f":"TDB_ETAB!E14","v":{"$error":"#DIV/0!"}},{"$f":"TDB_ETAB!F14","v":{"$error":"#DIV/0!"}},{"$f":"TDB_ETAB!G14","v":{"$error":"#DIV/0!"}},{"$f":"TDB_ETAB!H14","v":{"$error":"#DIV/0!"}},null,"Taux \"fragile\"",{"$f":"TDB_ETAB!K14","v":{"$error":"#DIV/0!"}}]
["Total élèves évalués ",{"$f":"TDB_ETAB!B15","v":{"$error":"#DIV/0!"}},{"$f":"TDB_ETAB!C15","v":{"$error":"#DIV/0!"}},{"$f":"TDB_ETAB!D15","v":{"$error":"#DIV/0!"}},{"$f":"TDB_ETAB!E15","v":{"$error":"#DIV/0!"}},{"$f":"TDB_ETAB!F15","v":{"$error":"#DIV/0!"}},{"$f":"TDB_ETAB!G15","v":{"$error":"#DIV/0!"}},{"$f":"TDB_ETAB!H15","v":{"$error":"#DIV/0!"}},null,"Taux \"satisfaisant\"",{"$f":"TDB_ETAB!K15","v":{"$error":"#DIV/0!"}}]
[{"$nulls":9},"Total élèves évalués ",{"$f":"TDB_ETAB!K16","v":{"$error":"#DIV/0!"}}]
[null,"Domaines communs",null,null,"Domaine qui concerne uniquement les élèves dont le score en CE est <  16"]
[{"$f":"CONCATENATE(\"Classe : \",Informations!$A$6)","v":"Classe : "},"Comprendre un support écrit (CE)","Comprendre un document audio","Fluence","Associer un groupe de lettres à un son \n","Déchiffrer des mots rapidement ","Connaître des mots","Associer une image à une phrase simple ",null,"Domaine qui concerne uniquement les élèves dont le score en CE est >=  16"]
["Nb \"Besoin de consolider les compétences élémentaires en lecture\"",{"$f":"COUNTIF(CAP_FRANCAIS!M:M,CONCATENATE(Informations!$A$6,\" \",Informations!$A$27))","v":0},{"$f":"COUNTIF(CAP_FRANCAIS!N:N,CONCATENATE(Informations!$A$6,\" \",Informations!$A$27))","v":0},{"$f":"COUNTIF(CAP_FRANCAIS!T:T,CONCATENATE(Informations!$A$6,\" \",Informations!$A$30))","v":0},{"$f":"COUNTIF(CAP_FRANCAIS!P:P,CONCATENATE(Informations!$A$6,\" \",Informations!$A$30))","v":0},{"$f":"COUNTIF(CAP_FRANCAIS!Q:Q,CONCATENATE(Informations!$A$6,\" \",Informations!$A$30))","v":0},{"$f":"COUNTIF(CAP_FRANCAIS!R:R,CONCATENATE(Informations!$A$6,\" \",Informations!$A$30))","v":0},{"$f":"COUNTIF(CAP_FRANCAIS!S:S,CONCATENATE(Informations!$A$6,\" \",Informations!$A$30))","v":0},null,"Niveau de maîtrise","Comprendre un support écrit (exercices seconde pro)"]
["Nb \"Capacité à comprendre les textes proposés\"",{"$f":"COUNTIF(CAP_FRANCAIS!M:M,CONCATENATE(Informations!$A$6,\" \",Informations!$A$28))","v":0},{"$f":"COUNTIF(CAP_FRANCAIS!N:N,CONCATENATE(Informations!$A$6,\" \",Informations!$A$28))","v":0},{"$f":"COUNTIF(CAP_FRANCAIS!T:T,CONCATENATE(Informations!$A$6,\" \",Informations!$A$31))","v":0},{"$f":"COUNTIF(CAP_FRANCAIS!P:P,CONCATENATE(Informations!$A$6,\" \",Informations!$A$31))","v":0},{"$f":"COUNTIF(CAP_FRANCAIS!Q:Q,CONCATENATE(Informations!$A$6,\" \",Informations!$A$31))","v":0},{"$f":"COUNTIF(CAP_FRANCAIS!R:R,CONCATENATE(Informations!$A$6,\" \",Informations!$A$31))","v":0},{"$f":"COUNTIF(CAP_FRANCAIS!S:S,CONCATENATE(Informations!$A$6,\" \",Informations!$A$31))","v":0},null,"Nb \"à besoins\"",{"$f":"COUNTIF(CAP_FRANCAIS!O:O,CONCATENATE(Informations!$A$6,\" \",Informations!$D$27))","v":0}]
["Total élèves évalués ",{"$f":"SUM(B12:B13)","v":0},{"$f":"SUM(C12:C13)","v":0},{"$f":"SUM(D12:D13)","v":0},{"$f":"SUM(E12:E13)","v":0},{"$f":"SUM(F12:F13)","v":0},0,0,null,"Nb \"fragile\"",{"$f":"COUNTIF(CAP_FRANCAIS!O:O,CONCATENATE(Informations!$A$6,\" \",Informations!$D$28))","v":0}]
[{"$nulls":9},"Nb \"satisfaisant\"",{"$f":"COUNTIF(CAP_FRANCAIS!O:O,CONCATENATE(Informations!$A$6,\" \",Informations!$D$29))","v":0}]
[null,"Domaines communs",null,null,"Domaine qui concerne uniquement les élèves dont le score en CE est <  16",{"$nulls":4},"Total élèves évalués ",{"$f":"SUM(K13:K15)","v":0}]
[{"$f":"CONCATENATE(\"Classe : \",Informations!$A$6)","v":"Classe : "},"Comprendre un support écrit (CE)","Comprendre un document audio","Fluence","Associer un groupe de lettres à un son \n","Déchiffrer des mots rapidement ","Connaître des mots","Associer une image à une phrase simple "]
["Taux \"Besoin de consolider les compétences élémentaires en lecture\"",{"$f":"B12/B$14","v":{"$error":"#DIV/0!"}},{"$f":"C12/C$14","v":{"$error":"#DIV/0!"}},{"$error":"#DIV/0!"},{"$error":"#DIV/0!"},{"$error":"#DIV/0!"},{"$error":"#DIV/0!"},{"$error":"#DIV/0!"},null,"Domaine qui concerne uniquement les élèves dont le score en CE est >=  16"]
["Taux \"Capacité à comprendre les textes proposés\"",{"$f":"B13/B$14","v":{"$error":"#DIV/0!"}},{"$f":"C13/C$14","v":{"$error":"#DIV/0!"}},{"$error":"#DIV/0!"},{"$error":"#DIV/0!"},{"$error":"#DIV/0!"},{"$error":"#DIV/0!"},{"$error":"#DIV/0!"},null,"Niveau de maîtrise","Comprendre un support écrit (exercices seconde pro)"]
["Total élèves évalués ",{"$f":"B14/B$14","v":{"$error":"#DIV/0!"}},{"$f":"C14/C$14","v":{"$error":"#DIV/0!"}},{"$error":"#DIV/0!"},{"$error":"#DIV/0!"},{"$error":"#DIV/0!"},{"$error":"#DIV/0!"},{"$error":"#DIV/0!"},null,"Taux \"à besoins\"",{"$f":"K13/K$16","v":{"$error":"#DIV/0!"}}]
[{"$nulls":9},"Taux \"fragile\"",{"$f":"K14/K$16","v":{"$error":"#DIV/0!"}}]
[{"$nulls":9},"Taux \"satisfaisant\"",{"$f":"K15/K$16","v":{"$error":"#DIV/0!"}}]
[null,"Domaines communs",null,null,"Domaine qui concerne uniquement les élèves dont le score en CE est <  16",{"$nulls":4},"Total élèves évalués ",{"$f":"K16/K$16","v":{"$error":"#DIV/0!"}}]
[{"$f":"CONCATENATE(\"Classe : \",Informations!$A$7)","v":"Classe : "},"Comprendre un support écrit (CE)","Comprendre un document audio","Fluence","Associer un groupe de lettres à un son \n","Déchiffrer des mots rapidement ","Connaître des mots","Associer une image à une phrase simple ",null,"Domaine qui concerne uniquement les élèves dont le score en CE est >=  16"]
["Nb \"Besoin de consolider les compétences élémentaires en lecture\"",{"$f":"COUNTIF(CAP_FRANCAIS!M:M,CONCATENATE(Informations!$A$7,\" \",Informations!$A$27))","v":0},{"$f":"COUNTIF(CAP_FRANCAIS!N:N,CONCATENATE(Informations!$A$7,\" \",Informations!$A$27))","v":0},{"$f":"COUNTIF(CAP_FRANCAIS!T:T,CONCATENATE(Informations!$A$7,\" \",Informations!$A$30))","v":0},{"$f":"COUNTIF(CAP_FRANCAIS!P:P,CONCATENATE(Informations!$A$7,\" \",Informations!$A$30))","v":0},{"$f":"COUNTIF(CAP_FRANCAIS!Q:Q,CONCATENATE(Informations!$A$7,\" \",Informations!$A$30))","v":0},{"$f":"COUNTIF(CAP_FRANCAIS!R:R,CONCATENATE(Informations!$A$7,\" \",Informations!$A$30))","v":0},{"$f":"COUNTIF(CAP_FRANCAIS!S:S,CONCATENATE(Informations!$A$7,\" \",Informations!$A$30))","v":0},null,"Niveau de maîtrise","Comprendre un support écrit (exercices seconde pro)"]
["Nb \"Capacité à comprendre les textes proposés\"",{"$f":"COUNTIF(CAP_FRANCAIS!M:M,CONCATENATE(Informations!$A$7,\" \",Informations!$A$28))","v":0},{"$f":"COUNTIF(CAP_FRANCAIS!N:N,CONCATENATE(Informations!$A$7,\" \",Informations!$A$28))","v":0},{"$f":"COUNTIF(CAP_FRANCAIS!T:T,CONCATENATE(Informations!$A$7,\" \",Informations!$A$31))","v":0},{"$f":"COUNTIF(CAP_FRANCAIS!P:P,CONCATENATE(Informations!$A$7,\" \",Informations!$A$31))","v":0},{"$f":"COUNTIF(CAP_FRANCAIS!Q:Q,CONCATENATE(Informations!$A$7,\" \",Informations!$A$31))","v":0},{"$f":"COUNTIF(CAP_FRANCAIS!R:R,CONCATENATE(Informations!$A$7,\" \",Informations!$A$31))","v":0},{"$f":"COUNTIF(CAP_FRANCAIS!S:S,CONCATENATE(Informations!$A$7,\" \",Informations!$A$31))","v":0},null,"Nb \"à besoins\"",{"$f":"COUNTIF(CAP_FRANCAIS!O:O,CONCATENATE(Informations!$A$7,\" \",Informations!$D$27))","v":0}]
["Total élèves évalués ",{"$f":"SUM(B25:B26)","v":0},{"$f":"SUM(C25:C26)","v":0},{"$f":"SUM(D25:D26)","v":0},{"$f":"SUM(E25:E26)","v":0},{"$f":"SUM(F25:F26)","v":0},{"$f":"SUM(G25:G26)","v":0},{"$f":"SUM(H25:H26)","v":0},null,"Nb \"fragile\"",{"$f":"COUNTIF(CAP_FRANCAIS!O:O,CONCATENATE(Informations!$A$7,\" \",Informations!$D$28))","v":0}]
[{"$nulls":9},"Nb \"satisfaisant\"",{"$f":"COUNTIF(CAP_FRANCAIS!O:O,CONCATENATE(Informations!$A$7,\" \",Informations!$D$29))","v":0}]
[null,"Domaines communs",null,null,"Domaine qui concerne uniquement les élèves dont le score en CE est <  16",{"$nulls":4},"Total élèves évalués ",{"$f":"SUM(K26:K28)","v":0}]
[{"$f":"CONCATENATE(\"Classe : \",Informations!$A$7)","v":"Classe : "},"Comprendre un support écrit (CE)","Comprendre un document audio","Fluence","Associer un groupe de lettres à un son \n","Déchiffrer des mots rapidement ","Connaître des mots","Associer une image à une phrase simple "]
["Taux \"Besoin de consolider les compétences élémentaires en lecture\"",{"$f":"B25/B$27","v":{"$error":"#DIV/0!"}},{"$f":"C25/C$27","v":{"$error":"#DIV/0!"}},{"$error":"#DIV/0!"},{"$error":"#DIV/0!"},{"$error":"#DIV/0!"},{"$error":"#DIV/0!"},{"$error":"#DIV/0!"},null,"Domaine qui concerne uniquement les élèves dont le score en CE est >=  16"]
["Taux \"Capacité à comprendre les textes proposés\"",{"$f":"B26/B$27","v":{"$error":"#DIV/0!"}},{"$f":"C26/C$27","v":{"$error":"#DIV/0!"}},{"$error":"#DIV/0!"},{"$error":"#DIV/0!"},{"$error":"#DIV/0!"},{"$error":"#DIV/0!"},{"$error":"#DIV/0!"},null,"Niveau de maîtrise","Comprendre un support écrit (exercices seconde pro)"]
["Total élèves évalués ",{"$f":"B27/B$27","v":{"$error":"#DIV/0!"}},{"$f":"C27/C$27","v":{"$error":"#DIV/0!"}},{"$error":"#DIV/0!"},{"$error":"#DIV/0!"},{"$error":"#DIV/0!"},{"$error":"#DIV/0!"},{"$error":"#DIV/0!"},null,"Taux \"à besoins\"",{"$f":"K26/K$29","v":{"$error":"#DIV/0!"}}]
[{"$nulls":9},"Taux \"fragile\"",{"$f":"K27/K$29","v":{"$error":"#DIV/0!"}}]
[{"$nulls":9},"Taux \"satisfaisant\"",{"$f":"K28/K$29","v":{"$error":"#DIV/0!"}}]
[{"$nulls":9},"Total élèves évalués ",{"$f":"K29/K$29","v":{"$error":"#DIV/0!"}}]
[null,"Domaines communs",null,null,"Domaine qui concerne uniquement les élèves dont le score en CE est <  16"]
[{"$f":"CONCATENATE(\"Classe : \",Informations!$A$8)","v":"Classe : "},"Comprendre un support écrit (CE)","Comprendre un document audio","Fluence","Associer un groupe de lettres à un son \n","Déchiffrer des mots rapidement ","Connaître des mots","Associer une image à une phrase simple ",null,"Domaine qui concerne uniquement les élèves dont le score en CE est >=  16"]
["Nb \"Besoin de consolider les compétences élémentaires en lecture\"",{"$f":"COUNTIF(CAP_FRANCAIS!M:M,CONCATENATE(Informations!$A$8,\" \",Informations!$A$27))","v":0},{"$f":"COUNTIF(CAP_FRANCAIS!N:N,CONCATENATE(Informations!$A$8,\" \",Informations!$A$27))","v":0},{"$f":"COUNTIF(CAP_FRANCAIS!T:T,CONCATENATE(Informations!$A$8,\" \",Informations!$A$30))","v":0},{"$f":"COUNTIF(CAP_FRANCAIS!P:P,CONCATENATE(Informations!$A$8,\" \",Informations!$A$30))","v":0},{"$f":"COUNTIF(CAP_FRANCAIS!Q:Q,CONCATENATE(Informations!$A$8,\" \",Informations!$A$30))","v":0},{"$f":"COUNTIF(CAP_FRANCAIS!R:R,CONCATENATE(Informations!$A$8,\" \",Informations!$A$30))","v":0},{"$f":"COUNTIF(CAP_FRANCAIS!S:S,CONCATENATE(Informations!$A$8,\" \",Informations!$A$30))","v":0},null,"Niveau de maîtrise","Comprendre un support écrit (exercices seconde pro)"]
["Nb \"Capacité à comprendre les textes proposés\"",{"$f":"COUNTIF(CAP_FRANCAIS!M:M,CONCATENATE(Informations!$A$8,\" \",Informations!$A$28))","v":0},{"$f":"COUNTIF(CAP_FRANCAIS!N:N,CONCATENATE(Informations!$A$8,\" \",Informations!$A$28))","v":0},{"$f":"COUNTIF(CAP_FRANCAIS!T:T,CONCATENATE(Informations!$A$8,\" \",Informations!$A$31))","v":0},{"$f":"COUNTIF(CAP_FRANCAIS!P:P,CONCATENATE(Informations!$A$8,\" \",Informations!$A$31))","v":0},{"$f":"COUNTIF(CAP_FRANCAIS!Q:Q,CONCATENATE(Informations!$A$8,\" \",Informations!$A$31))","v":0},{"$f":"COUNTIF(CAP_FRANCAIS!R:R,CONCATENATE(Informations!$A$8,\" \",Informations!$A$31))","v":0},{"$f":"COUNTIF(CAP_FRANCAIS!S:S,CONCATENATE(Informations!$A$8,\" \",Informations!$A$31))","v":0},null,"Nb \"à besoins\"",{"$f":"COUNTIF(CAP_FRANCAIS!O:O,CONCATENATE(Informations!$A$8,\" \",Informations!$D$27))","v":0}]
["Total élèves évalués ",{"$f":"SUM(B39:B40)","v":0},{"$f":"SUM(C39:C40)","v":0},{"$f":"SUM(D39:D40)","v":0},{"$f":"SUM(E39:E40)","v":0},{"$f":"SUM(F39:F40)","v":0},{"$f":"SUM(G39:G40)","v":0},{"$f":"SUM(H39:H40)","v":0},null,"Nb \"fragile\"",{"$f":"COUNTIF(CAP_FRANCAIS!O:O,CONCATENATE(Informations!$A$8,\" \",Informations!$D$28))","v":0}]
[{"$nulls":9},"Nb \"satisfaisant\"",{"$f":"COUNTIF(CAP_FRANCAIS!O:O,CONCATENATE(Informations!$A$8,\" \",Informations!$D$29))","v":0}]
[null,"Domaines communs",null,null,"Domaine qui concerne uniquement les élèves dont le score en CE est <  16",{"$nulls":4},"Total élèves évalués ",{"$f":"SUM(K40:K42)","v":0}]
[{"$f":"CONCATENATE(\"Classe : \",Informations!$A$8)","v":"Classe : "},"Comprendre un support écrit (CE)","Comprendre un document audio","Fluence","Associer un groupe de lettres à un son \n","Déchiffrer des mots rapidement ","Connaître des mots","Associer une image à une phrase simple "]
["Taux \"Besoin de consolider les compétences élémentaires en lecture\"",{"$f":"B39/B$41","v":{"$error":"#DIV/0!"}},{"$f":"C39/C$41","v":{"$error":"#DIV/0!"}},{"$error":"#DIV/0!"},{"$error":"#DIV/0!"},{"$error":"#DIV/0!"},{"$error":"#DIV/0!"},{"$error":"#DIV/0!"},null,"Domaine qui concerne uniquement les élèves dont le score en CE est >=  16"]
["Taux \"Capacité à comprendre les textes proposés\"",{"$f":"B40/B$41","v":{"$error":"#DIV/0!"}},{"$f":"C40/C$41","v":{"$error":"#DIV/0!"}},{"$error":"#DIV/0!"},{"$error":"#DIV/0!"},{"$error":"#DIV/0!"},{"$error":"#DIV/0!"},{"$error":"#DIV/0!"},null,"Niveau de maîtrise","Comprendre un support écrit (exercices seconde pro)"]
["Total élèves évalués ",{"$f":"B41/B$41","v":{"$error":"#DIV/0!"}},{"$f":"C41/C$41","v":{"$error":"#DIV/0!"}},{"$error":"#DIV/0!"},{"$error":"#DIV/0!"},{"$error":"#DIV/0!"},{"$error":"#DIV/0!"},{"$error":"#DIV/0!"},null,"Taux \"à besoins\"",{"$f":"K40/K$43","v":{"$error":"#DIV/0!"}}]
[{"$nulls":9},"Taux \"fragile\"",{"$f":"K41/K$43","v":{"$error":"#DIV/0!"}}]
[{"$nulls":9},"Taux \"satisfaisant\"",{"$f":"K42/K$43","v":{"$error":"#DIV/0!"}}]
[{"$nulls":9},"Total élèves évalués ",{"$f":"K43/K$43","v":{"$error":"#DIV/0!"}}]
[]
[null,"Domaines communs",null,null,"Domaine qui concerne uniquement les élèves dont le score en CE est <  16"]
[{"$f":"CONCATENATE(\"Classe : \",Informations!$A$9)","v":"Classe : "},"Comprendre un support écrit (CE)","Comprendre un document audio","Fluence","Associer un groupe de lettres à un son \n","Déchiffrer des mots rapidement ","Connaître des mots","Associer une image à une phrase simple ",null,"Domaine qui concerne uniquement les élèves dont le score en CE est >=  16"]
["Nb \"Besoin de consolider les compétences élémentaires en lecture\"",{"$f":"COUNTIF(CAP_FRANCAIS!M:M,CONCATENATE(Informations!$A$9,\" \",Informations!$A$27))","v":0},{"$f":"COUNTIF(CAP_FRANCAIS!N:N,CONCATENATE(Informations!$A$9,\" \",Informations!$A$27))","v":0},{"$f":"COUNTIF(CAP_FRANCAIS!T:T,CONCATENATE(Informations!$A$9,\" \",Informations!$A$30))","v":0},{"$f":"COUNTIF(CAP_FRANCAIS!P:P,CONCATENATE(Informations!$A$9,\" \",Informations!$A$30))","v":0},{"$f":"COUNTIF(CAP_FRANCAIS!Q:Q,CONCATENATE(Informations!$A$9,\" \",Informations!$A$30))","v":0},{"$f":"COUNTIF(CAP_FRANCAIS!R:R,CONCATENATE(Informations!$A$9,\" \",Informations!$A$30))","v":0},{"$f":"COUNTIF(CAP_FRANCAIS!S:S,CONCATENATE(Informations!$A$9,\" \",Informations!$A$30))","v":0},null,"Niveau de maîtrise","Comprendre un support écrit (exercices seconde pro)"]
["Nb \"Capacité à comprendre les textes proposés\"",{"$f":"COUNTIF(CAP_FRANCAIS!M:M,CONCATENATE(Informations!$A$9,\" \",Informations!$A$28))","v":0},{"$f":"COUNTIF(CAP_FRANCAIS!N:N,CONCATENATE(Informations!$A$9,\" \",Informations!$A$28))","v":0},{"$f":"COUNTIF(CAP_FRANCAIS!T:T,CONCATENATE(Informations!$A$9,\" \",Informations!$A$31))","v":0},{"$f":"COUNTIF(CAP_FRANCAIS!P:P,CONCATENATE(Informations!$A$9,\" \",Informations!$A$31))","v":0},{"$f":"COUNTIF(CAP_FRANCAIS!Q:Q,CONCATENATE(Informations!$A$9,\" \",Informations!$A$31))","v":0},{"$f":"COUNTIF(CAP_FRANCAIS!R:R,CONCATENATE(Informations!$A$9,\" \",Informations!$A$31))","v":0},{"$f":"COUNTIF(CAP_FRANCAIS!S:S,CONCATENATE(Informations!$A$9,\" \",Informations!$A$31))","v":0},null,"Nb \"à besoins\"",{"$f":"COUNTIF(CAP_FRANCAIS!O:O,CONCATENATE(Informations!$A$9,\" \",Informations!$D$27))","v":0}]
["Total élèves évalués ",{"$f":"SUM(B54:B55)","v":0},{"$f":"SUM(C54:C55)","v":0},{"$f":"SUM(D54:D55)","v":0},{"$f":"SUM(E54:E55)","v":0},{"$f":"SUM(F54:F55)","v":0},{"$f":"SUM(G54:G55)","v":0},{"$f":"SUM(H54:H55)","v":0},null,"Nb \"fragile\"",{"$f":"COUNTIF(CAP_FRANCAIS!O:O,CONCATENATE(Informations!$A$9,\" \",Informations!$D$28))","v":0}]
[{"$nulls":9},"Nb \"satisfaisant\"",{"$f":"COUNTIF(CAP_FRANCAIS!O:O,CONCATENATE(Informations!$A$9,\" \",Informations!$D$29))","v":0}]
[null,"Domaines communs",null,null,"Domaine qui concerne uniquement les élèves dont le score en CE est <  16",{"$nulls":4},"Total élèves évalués ",{"$f":"SUM(K55:K57)","v":0}]
[{"$f":"CONCATENATE(\"Classe : \",Informations!$A$9)","v":"Classe : "},"Comprendre un support écrit (CE)","Comprendre un document audio","Fluence","Associer un groupe de lettres à un son \n","Déchiffrer des mots rapidement ","Connaître des mots","Associer une image à une phrase simple "]
["Taux \"Besoin de consolider les compétences élémentaires en lecture\"",{"$f":"B54/B$56","v":{"$error":"#DIV/0!"}},{"$f":"C54/C$56","v":{"$error":"#DIV/0!"}},{"$error":"#DIV/0!"},{"$error":"#DIV/0!"},{"$error":"#DIV/0!"},{"$error":"#DIV/0!"},{"$error":"#DIV/0!"},null,"Domaine qui concerne uniquement les élèves dont le score en CE est >=  16"]
["Taux \"Capacité à comprendre les textes proposés\"",{"$f":"B55/B$56","v":{"$error":"#DIV/0!"}},{"$f":"C55/C$56","v":{"$error":"#DIV/0!"}},{"$error":"#DIV/0!"},{"$error":"#DIV/0!"},{"$error":"#DIV/0!"},{"$error":"#DIV/0!"},{"$error":"#DIV/0!"},null,"Niveau de maîtrise","Comprendre un support écrit (exercices seconde pro)"]
["Total élèves évalués ",{"$f":"B56/B$56","v":{"$error":"#DIV/0!"}},{"$f":"C56/C$56","v":{"$error":"#DIV/0!"}},{"$error":"#DIV/0!"},{"$error":"#DIV/0!"},{"$error":"#DIV/0!"},{"$error":"#DIV/0!"},{"$error":"#DIV/0!"},null,"Taux \"à besoins\"",{"$f":"K55/K$58","v":{"$error":"#DIV/0!"}}]
[{"$nulls":9},"Taux \"fragile\"",{"$f":"K56/K$58","v":{"$error":"#DIV/0!"}}]
[{"$nulls":9},"Taux \"satisfaisant\"",{"$f":"K57/K$58","v":{"$error":"#DIV/0!"}}]
[{"$nulls":9},"Total élèves évalués ",{"$f":"K58/K$58","v":{"$error":"#DIV/0!"}}]
[]
[]
[null,"Domaines communs",null,null,"Domaine qui concerne uniquement les élèves dont le score en CE est <  16"]
[{"$f":"CONCATENATE(\"Classe : \",Informations!$A$10)","v":"Classe : "},"Comprendre un support écrit (CE)","Comprendre un document audio","Fluence","Associer un groupe de lettres à un son \n","Déchiffrer des mots rapidement ","Connaître des mots","Associer une image à une phrase simple ",null,"Domaine qui concerne uniquement les élèves dont le score en CE est >=  16"]
["Nb \"Besoin de consolider les compétences élémentaires en lecture\"",{"$f":"COUNTIF(CAP_FRANCAIS!M:M,CONCATENATE(Informations!$A$10,\" \",Informations!$A$27))","v":0},{"$f":"COUNTIF(CAP_FRANCAIS!N:N,CONCATENATE(Informations!$A$10,\" \",Informations!$A$27))","v":0},{"$f":"COUNTIF(CAP_FRANCAIS!T:T,CONCATENATE(Informations!$A$10,\" \",Informations!$A$30))","v":0},{"$f":"COUNTIF(CAP_FRANCAIS!P:P,CONCATENATE(Informations!$A$10,\" \",Informations!$A$30))","v":0},{"$f":"COUNTIF(CAP_FRANCAIS!Q:Q,CONCATENATE(Informations!$A$10,\" \",Informations!$A$30))","v":0},{"$f":"COUNTIF(CAP_FRANCAIS!R:R,CONCATENATE(Informations!$A$10,\" \",Informations!$A$30))","v":0},{"$f":"COUNTIF(CAP_FRANCAIS!S:S,CONCATENATE(Informations!$A$10,\" \",Informations!$A$30))","v":0},null,"Niveau de maîtrise","Comprendre un support écrit (exercices seconde pro)"]
["Nb \"Capacité à comprendre les textes proposés\"",{"$f":"COUNTIF(CAP_FRANCAIS!M:M,CONCATENATE(Informations!$A$10,\" \",Informations!$A$28))","v":0},{"$f":"COUNTIF(CAP_FRANCAIS!N:N,CONCATENATE(Informations!$A$10,\" \",Informations!$A$28))","v":0},{"$f":"COUNTIF(CAP_FRANCAIS!T:T,CONCATENATE(Informations!$A$10,\" \",Informations!$A$31))","v":0},{"$f":"COUNTIF(CAP_FRANCAIS!P:P,CONCATENATE(Informations!$A$10,\" \",Informations!$A$31))","v":0},{"$f":"COUNTIF(CAP_FRANCAIS!Q:Q,CONCATENATE(Informations!$A$10,\" \",Informations!$A$31))","v":0},{"$f":"COUNTIF(CAP_FRANCAIS!R:R,CONCATENATE(Informations!$A$10,\" \",Informations!$A$31))","v":0},{"$f":"COUNTIF(CAP_FRANCAIS!S:S,CONCATENATE(Informations!$A$10,\" \",Informations!$A$31))","v":0},null,"Nb \"à besoins\"",{"$f":"COUNTIF(CAP_FRANCAIS!O:O,CONCATENATE(Informations!$A$10,\" \",Informations!$D$27))","v":0}]
["Total élèves évalués ",{"$f":"SUM(B70:B71)","v":0},{"$f":"SUM(C70:C71)","v":0},{"$f":"SUM(D70:D71)","v":0},{"$f":"SUM(E70:E71)","v":0},{"$f":"SUM(F70:F71)","v":0},{"$f":"SUM(G70:G71)","v":0},{"$f":"SUM(H70:H71)","v":0},null,"Nb \"fragile\"",{"$f":"COUNTIF(CAP_FRANCAIS!O:O,CONCATENATE(Informations!$A$10,\" \",Informations!$D$28))","v":0}]
[{"$nulls":9},"Nb \"satisfaisant\"",{"$f":"COUNTIF(CAP_FRANCAIS!O:O,CONCATENATE(Informations!$A$10,\" \",Informations!$D$29))","v":0}]
[null,"Domaines communs",null,null,"Domaine qui concerne uniquement les élèves dont le score en CE est <  16",{"$nulls":4},"Total élèves évalués ",{"$f":"SUM(K71:K73)","v":0}]
[{"$f":"CONCATENATE(\"Classe : \",Informations!$A$10)","v":"Classe : "},"Comprendre un support écrit (CE)","Comprendre un document audio","Fluence","Associer un groupe de lettres à un son \n","Déchiffrer des mots rapidement ","Connaître des mots","Associer une image à une phrase simple "]
["Taux \"Besoin de consolider les compétences élémentaires en lecture\"",{"$f":"B70/B$72","v":{"$error":"#DIV/0!"}},{"$f":"C70/C$72","v":{"$error":"#DIV/0!"}},{"$error":"#DIV/0!"},{"$error":"#DIV/0!"},{"$error":"#DIV/0!"},{"$error":"#DIV/0!"},{"$error":"#DIV/0!"},null,"Domaine qui concerne uniquement les élèves dont le score en CE est >=  16"]
["Taux \"Capacité à comprendre les textes proposés\"",{"$f":"B71/B$72","v":{"$error":"#DIV/0!"}},{"$error":"#DIV/0!"},{"$error":"#DIV/0!"},{"$error":"#DIV/0!"},{"$error":"#DIV/0!"},{"$error":"#DIV/0!"},{"$error":"#DIV/0!"},null,"Niveau de maîtrise","Comprendre un support écrit (exercices seconde pro)"]
["Total élèves évalués ",{"$f":"B72/B$72","v":{"$error":"#DIV/0!"}},{"$f":"C72/C$72","v":{"$error":"#DIV/0!"}},{"$error":"#DIV/0!"},{"$error":"#DIV/0!"},{"$error":"#DIV/0!"},{"$error":"#DIV/0!"},{"$error":"#DIV/0!"},null,"Taux \"à besoins\"",{"$f":"K71/K$74","v":{"$error":"#DIV/0!"}}]
[{"$nulls":9},"Taux \"fragile\"",{"$f":"K72/K$74","v":{"$error":"#DIV/0!"}}]
[{"$nulls":9},"Taux \"satisfaisant\"",{"$f":"K73/K$74","v":{"$error":"#DIV/0!"}}]
[{"$nulls":9},"Total élèves évalués ",{"$f":"K74/K$74","v":{"$error":"#DIV/0!"}}]
[]
[]
[null,"Domaines communs",null,null,"Domaine qui concerne uniquement les élèves dont le score en CE est <  16"]
[{"$f":"CONCATENATE(\"Classe : \",Informations!$A$11)","v":"Classe : "},"Comprendre un support écrit (CE)","Comprendre un document audio","Fluence","Associer un groupe de lettres à un son \n","Déchiffrer des mots rapidement ","Connaître des mots","Associer une image à une phrase simple ",null,"Domaine qui concerne uniquement les élèves dont le score en CE est >=  16"]
["Nb \"Besoin de consolider les compétences élémentaires en lecture\"",{"$f":"COUNTIF(CAP_FRANCAIS!M:M,CONCATENATE(Informations!$A$11,\" \",Informations!$A$27))","v":0},{"$f":"COUNTIF(CAP_FRANCAIS!N:N,CONCATENATE(Informations!$A$11,\" \",Informations!$A$27))","v":0},{"$f":"COUNTIF(CAP_FRANCAIS!T:T,CONCATENATE(Informations!$A$11,\" \",Informations!$A$30))","v":0},{"$f":"COUNTIF(CAP_FRANCAIS!P:P,CONCATENATE(Informations!$A$11,\" \",Informations!$A$30))","v":0},{"$f":"COUNTIF(CAP_FRANCAIS!Q:Q,CONCATENATE(Informations!$A$11,\" \",Informations!$A$30))","v":0},{"$f":"COUNTIF(CAP_FRANCAIS!R:R,CONCATENATE(Informations!$A$11,\" \",Informations!$A$30))","v":0},{"$f":"COUNTIF(CAP_FRANCAIS!S:S,CONCATENATE(Informations!$A$11,\" \",Informations!$A$30))","v":0},null,"Niveau de maîtrise","Comprendre un support écrit (exercices seconde pro)"]
["Nb \"Capacité à comprendre les textes proposés\"",{"$f":"COUNTIF(CAP_FRANCAIS!M:M,CONCATENATE(Informations!$A$11,\" \",Informations!$A$28))","v":0},{"$f":"COUNTIF(CAP_FRANCAIS!N:N,CONCATENATE(Informations!$A$11,\" \",Informations!$A$28))","v":0},{"$f":"COUNTIF(CAP_FRANCAIS!T:T,CONCATENATE(Informations!$A$11,\" \",Informations!$A$31))","v":0},{"$f":"COUNTIF(CAP_FRANCAIS!P:P,CONCATENATE(Informations!$A$11,\" \",Informations!$A$31))","v":0},{"$f":"COUNTIF(CAP_FRANCAIS!Q:Q,CONCATENATE(Informations!$A$11,\" \",Informations!$A$31))","v":0},{"$f":"COUNTIF(CAP_FRANCAIS!R:R,CONCATENATE(Informations!$A$11,\" \",Informations!$A$31))","v":0},{"$f":"COUNTIF(CAP_FRANCAIS!S:S,CONCATENATE(Informations!$A$11,\" \",Informations!$A$31))","v":0},null,"Nb \"à besoins\"",{"$f":"COUNTIF(CAP_FRANCAIS!O:O,CONCATENATE(Informations!$A$11,\" \",Informations!$D$27))","v":0}]
["Total élèves évalués ",{"$f":"SUM(B86:B87)","v":0},{"$f":"SUM(C86:C87)","v":0},{"$f":"SUM(D86:D87)","v":0},{"$f":"SUM(E86:E87)","v":0},{"$f":"SUM(F86:F87)","v":0},{"$f":"SUM(G86:G87)","v":0},{"$f":"SUM(H86:H87)","v":0},null,"Nb \"fragile\"",{"$f":"COUNTIF(CAP_FRANCAIS!O:O,CONCATENATE(Informations!$A$11,\" \",Informations!$D$28))","v":0}]
[{"$nulls":9},"Nb \"satisfaisant\"",{"$f":"COUNTIF(CAP_FRANCAIS!O:O,CONCATENATE(Informations!$A$11,\" \",Informations!$D$29))","v":0}]
[null,"Domaines communs",null,null,"Domaine qui concerne uniquement les élèves dont le score en CE est <  16",{"$nulls":4},"Total élèves évalués ",{"$f":"SUM(K87:K89)","v":0}]
[{"$f":"CONCATENATE(\"Classe : \",Informations!$A$11)","v":"Classe : "},"Comprendre un support écrit (CE)","Comprendre un document audio","Fluence","Associer un groupe de lettres à un son \n","Déchiffrer des mots rapidement ","Connaître des mots","Associer une image à une phrase simple "]
["Taux \"Besoin de consolider les compétences élémentaires en lecture\"",{"$f":"B86/B$88","v":{"$error":"#DIV/0!"}},{"$f":"C86/C$88","v":{"$error":"#DIV/0!"}},{"$error":"#DIV/0!"},{"$error":"#DIV/0!"},{"$error":"#DIV/0!"},{"$error":"#DIV/0!"},{"$error":"#DIV/0!"},null,"Domaine qui concerne uniquement les élèves dont le score en CE est >=  16"]
["Taux \"Capacité à comprendre les textes proposés\"",{"$f":"B87/B$88","v":{"$error":"#DIV/0!"}},{"$f":"C87/C$88","v":{"$error":"#DIV/0!"}},{"$error":"#DIV/0!"},{"$error":"#DIV/0!"},{"$error":"#DIV/0!"},{"$error":"#DIV/0!"},{"$error":"#DIV/0!"},null,"Niveau de maîtrise","Comprendre un support écrit (exercices seconde pro)"]
["Total élèves évalués ",{"$f":"B88/B$88","v":{"$error":"#DIV/0!"}},{"$f":"C88/C$88","v":{"$error":"#DIV/0!"}},{"$error":"#DIV/0!"},{"$error":"#DIV/0!"},{"$error":"#DIV/0!"},{"$error":"#DIV/0!"},{"$error":"#DIV/0!"},null,"Taux \"à besoins\"",{"$f":"K87/K$90","v":{"$error":"#DIV/0!"}}]
[{"$nulls":9},"Taux \"fragile\"",{"$f":"K88/K$90","v":{"$error":"#DIV/0!"}}]
[{"$nulls":9},"Taux \"satisfaisant\"",{"$f":"K89/K$90","v":{"$error":"#DIV/0!"}}]
[{"$nulls":9},"Total élèves évalués ",{"$f":"K90/K$90","v":{"$error":"#DIV/0!"}}]
[]
[]
[]
[null,"Domaines communs",null,null,"Domaine qui concerne uniquement les élèves dont le score en CE est <  16"]
[{"$f":"CONCATENATE(\"Classe : \",Informations!$A$12)","v":"Classe : "},"Comprendre un support écrit (CE)","Comprendre un document audio","Fluence","Associer un groupe de lettres à un son \n","Déchiffrer des mots rapidement ","Connaître des mots","Associer une image à une phrase simple ",null,"Domaine qui concerne uniquement les élèves dont le score en CE est >=  16"]
["Nb \"Besoin de consolider les compétences élémentaires en lecture\"",{"$f":"COUNTIF(CAP_FRANCAIS!M:M,CONCATENATE(Informations!$A$12,\" \",Informations!$A$27))","v":0},{"$f":"COUNTIF(CAP_FRANCAIS!N:N,CONCATENATE(Informations!$A$12,\" \",Informations!$A$27))","v":0},{"$f":"COUNTIF(CAP_FRANCAIS!T:T,CONCATENATE(Informations!$A$12,\" \",Informations!$A$30))","v":0},{"$f":"COUNTIF(CAP_FRANCAIS!P:P,CONCATENATE(Informations!$A$12,\" \",Informations!$A$30))","v":0},{"$f":"COUNTIF(CAP_FRANCAIS!Q:Q,CONCATENATE(Informations!$A$12,\" \",Informations!$A$30))","v":0},{"$f":"COUNTIF(CAP_FRANCAIS!R:R,CONCATENATE(Informations!$A$12,\" \",Informations!$A$30))","v":0},{"$f":"COUNTIF(CAP_FRANCAIS!S:S,CONCATENATE(Informations!$A$12,\" \",Informations!$A$30))","v":0},null,"Niveau de maîtrise","Comprendre un support écrit (exercices seconde pro)"]
["Nb \"Capacité à comprendre les textes proposés\"",{"$f":"COUNTIF(CAP_FRANCAIS!M:M,CONCATENATE(Informations!$A$12,\" \",Informations!$A$28))","v":0},{"$f":"COUNTIF(CAP_FRANCAIS!N:N,CONCATENATE(Informations!$A$12,\" \",Informations!$A$28))","v":0},{"$f":"COUNTIF(CAP_FRANCAIS!T:T,CONCATENATE(Informations!$A$12,\" \",Informations!$A$31))","v":0},{"$f":"COUNTIF(CAP_FRANCAIS!P:P,CONCATENATE(Informations!$A$12,\" \",Informations!$A$31))","v":0},{"$f":"COUNTIF(CAP_FRANCAIS!Q:Q,CONCATENATE(Informations!$A$12,\" \",Informations!$A$31))","v":0},{"$f":"COUNTIF(CAP_FRANCAIS!R:R,CONCATENATE(Informations!$A$12,\" \",Informations!$A$31))","v":0},{"$f":"COUNTIF(CAP_FRANCAIS!S:S,CONCATENATE(Informations!$A$12,\" \",Informations!$A$31))","v":0},null,"Nb \"à besoins\"",{"$f":"COUNTIF(CAP_FRANCAIS!O:O,CONCATENATE(Informations!$A$12,\" \",Informations!$D$27))","v":0}]
["Total élèves évalués ",{"$f":"SUM(B103:B104)","v":0},{"$f":"SUM(C103:C104)","v":0},{"$f":"SUM(D103:D104)","v":0},{"$f":"SUM(E103:E104)","v":0},{"$f":"SUM(F103:F104)","v":0},{"$f":"SUM(G103:G104)","v":0},{"$f":"SUM(H103:H104)","v":0},null,"Nb \"fragile\"",{"$f":"COUNTIF(CAP_FRANCAIS!O:O,CONCATENATE(Informations!$A$12,\" \",Informations!$D$28))","v":0}]
[{"$nulls":9},"Nb \"satisfaisant\"",{"$f":"COUNTIF(CAP_FRANCAIS!O:O,CONCATENATE(Informations!$A$12,\" \",Informations!$D$29))","v":0}]
[null,"Domaines communs",null,null,"Domaine qui concerne uniquement les élèves dont le score en CE est <  16",{"$nulls":4},"Total élèves évalués ",{"$f":"SUM(K104:K106)","v":0}]
[{"$f":"CONCATENATE(\"Classe : \",Informations!$A$12)","v":"Classe : "},"Comprendre un support écrit (CE)","Comprendre un document audio","Fluence","Associer un groupe de lettres à un son \n","Déchiffrer des mots rapidement ","Connaître des mots","Associer une image à une phrase simple "]
["Taux \"Besoin de consolider les compétences élémentaires en lecture\"",{"$f":"B103/B$105","v":{"$error":"#DIV/0!"}},{"$f":"C103/C$105","v":{"$error":"#DIV/0!"}},{"$error":"#DIV/0!"},{"$error":"#DIV/0!"},{"$error":"#DIV/0!"},{"$error":"#DIV/0!"},{"$error":"#DIV/0!"},null,"Domaine qui concerne uniquement les élèves dont le score en CE est >=  16"]
["Taux \"Capacité à comprendre les textes proposés\"",{"$f":"B104/B$105","v":{"$error":"#DIV/0!"}},{"$f":"C104/C$105","v":{"$error":"#DIV/0!"}},{"$error":"#DIV/0!"},{"$error":"#DIV/0!"},{"$error":"#DIV/0!"},{"$error":"#DIV/0!"},{"$error":"#DIV/0!"},null,"Niveau de maîtrise","Comprendre un support écrit (exercices seconde pro)"]
["Total élèves évalués ",{"$f":"B105/B$105","v":{"$error":"#DIV/0!"}},{"$f":"C105/C$105","v":{"$error":"#DIV/0!"}},{"$error":"#DIV/0!"},{"$error":"#DIV/0!"},{"$error":"#DIV/0!"},{"$error":"#DIV/0!"},{"$error":"#DIV/0!"},null,"Taux \"à besoins\"",{"$f":"K104/K$107","v":{"$error":"#DIV/0!"}}]
[{"$nulls":9},"Taux \"fragile\"",{"$f":"K105/K$107","v":{"$error":"#DIV/0!"}}]
[{"$nulls":9},"Taux \"satisfaisant\"",{"$f":"K106/K$107","v":{"$error":"#DIV/0!"}}]
[{"$nulls":9},"Total élèves évalués ",{"$f":"K107/K$107","v":{"$error":"#DIV/0!"}}]
[]
[]
[null,"Domaines communs",null,null,"Domaine qui concerne uniquement les élèves dont le score en CE est <  16"]
[{"$f":"CONCATENATE(\"Classe : \",Informations!$A$13)","v":"Classe : "},"Comprendre un support écrit (CE)","Comprendre un document audio","Fluence","Associer un groupe de lettres à un son \n","Déchiffrer des mots rapidement ","Connaître des mots","Associer une image à une phrase simple ",null,"Domaine qui concerne uniquement les élèves dont le score en CE est >=  16"]
["Nb \"Besoin de consolider les compétences élémentaires en lecture\"",{"$f":"COUNTIF(CAP_FRANCAIS!M:M,CONCATENATE(Informations!$A$13,\" \",Informations!$A$27))","v":0},{"$f":"COUNTIF(CAP_FRANCAIS!N:N,CONCATENATE(Informations!$A$13,\" \",Informations!$A$27))","v":0},{"$f":"COUNTIF(CAP_FRANCAIS!T:T,CONCATENATE(Informations!$A$13,\" \",Informations!$A$30))","v":0},{"$f":"COUNTIF(CAP_FRANCAIS!P:P,CONCATENATE(Informations!$A$13,\" \",Informations!$A$30))","v":0},{"$f":"COUNTIF(CAP_FRANCAIS!Q:Q,CONCATENATE(Informations!$A$13,\" \",Informations!$A$30))","v":0},{"$f":"COUNTIF(CAP_FRANCAIS!R:R,CONCATENATE(Informations!$A$13,\" \",Informations!$A$30))","v":0},{"$f":"COUNTIF(CAP_FRANCAIS!S:S,CONCATENATE(Informations!$A$13,\" \",Informations!$A$30))","v":0},null,"Niveau de maîtrise","Comprendre un support écrit (exercices seconde pro)"]
["Nb \"Capacité à comprendre les textes proposés\"",{"$f":"COUNTIF(CAP_FRANCAIS!M:M,CONCATENATE(Informations!$A$13,\" \",Informations!$A$28))","v":0},{"$f":"COUNTIF(CAP_FRANCAIS!N:N,CONCATENATE(Informations!$A$13,\" \",Informations!$A$28))","v":0},{"$f":"COUNTIF(CAP_FRANCAIS!T:T,CONCATENATE(Informations!$A$13,\" \",Informations!$A$31))","v":0},{"$f":"COUNTIF(CAP_FRANCAIS!P:P,CONCATENATE(Informations!$A$13,\" \",Informations!$A$31))","v":0},{"$f":"COUNTIF(CAP_FRANCAIS!Q:Q,CONCATENATE(Informations!$A$13,\" \",Informations!$A$31))","v":0},{"$f":"COUNTIF(CAP_FRANCAIS!R:R,CONCATENATE(Informations!$A$13,\" \",Informations!$A$31))","v":0},{"$f":"COUNTIF(CAP_FRANCAIS!S:S,CONCATENATE(Informations!$A$13,\" \",Informations!$A$31))","v":0},null,"Nb \"à besoins\"",{"$f":"COUNTIF(CAP_FRANCAIS!O:O,CONCATENATE(Informations!$A$13,\" \",Informations!$D$27))","v":0}]
["Total élèves évalués ",{"$f":"SUM(B119:B120)","v":0},{"$f":"SUM(C119:C120)","v":0},{"$f":"SUM(D119:D120)","v":0},{"$f":"SUM(E119:E120)","v":0},{"$f":"SUM(F119:F120)","v":0},{"$f":"SUM(G119:G120)","v":0},{"$f":"SUM(H119:H120)","v":0},null,"Nb \"fragile\"",{"$f":"COUNTIF(CAP_FRANCAIS!O:O,CONCATENATE(Informations!$A$13,\" \",Informations!$D$28))","v":0}]
[{"$nulls":9},"Nb \"satisfaisant\"",{"$f":"COUNTIF(CAP_FRANCAIS!O:O,CONCATENATE(Informations!$A$13,\" \",Informations!$D$29))","v":0}]
[null,"Domaines communs",null,null,"Domaine qui concerne uniquement les élèves dont le score en CE est <  16",{"$nulls":4},"Total élèves évalués ",{"$f":"SUM(K120:K122)","v":0}]
[{"$f":"CONCATENATE(\"Classe : \",Informations!$A$13)","v":"Classe : "},"Comprendre un support écrit (CE)","Comprendre un document audio","Fluence","Associer un groupe de lettres à un son \n","Déchiffrer des mots rapidement ","Connaître des mots","Associer une image à une phrase simple "]
["Taux \"Besoin de consolider les compétences élémentaires en lecture\"",{"$f":"B119/B$121","v":{"$error":"#DIV/0!"}},{"$f":"C119/C$121","v":{"$error":"#DIV/0!"}},{"$error":"#DIV/0!"},{"$error":"#DIV/0!"},{"$error":"#DIV/0!"},{"$error":"#DIV/0!"},{"$error":"#DIV/0!"},null,"Domaine qui concerne uniquement les élèves dont le score en CE est >=  16"]
["Taux \"Capacité à comprendre les textes proposés\"",{"$f":"B120/B$121","v":{"$error":"#DIV/0!"}},{"$f":"C120/C$121","v":{"$error":"#DIV/0!"}},{"$error":"#DIV/0!"},{"$error":"#DIV/0!"},{"$error":"#DIV/0!"},{"$error":"#DIV/0!"},{"$error":"#DIV/0!"},null,"Niveau de maîtrise","Comprendre un support écrit (exercices seconde pro)"]
["Total élèves évalués ",{"$f":"B121/B$121","v":{"$error":"#DIV/0!"}},{"$f":"C121/C$121","v":{"$error":"#DIV/0!"}},{"$error":"#DIV/0!"},{"$error":"#DIV/0!"},{"$error":"#DIV/0!"},{"$error":"#DIV/0!"},{"$error":"#DIV/0!"},null,"Taux \"à besoins\"",{"$f":"K120/K$123","v":{"$error":"#DIV/0!"}}]
[{"$nulls":9},"Taux \"fragile\"",{"$f":"K121/K$123","v":{"$error":"#DIV/0!"}}]
[{"$nulls":9},"Taux \"satisfaisant\"",{"$f":"K122/K$123","v":{"$error":"#DIV/0!"}}]
[{"$nulls":9},"Total élèves évalués ",{"$f":"K123/K$123","v":{"$error":"#DIV/0!"}}]

{"sheet":"TDB_CLASSES_MATHS","index":3,"n_rows":130,"n_cols":8,"rows_kept":130,"merged":[[3,2,3,4],[3,6,3,7],[9,2,9,4],[10,6,10,7],[15,2,15,4],[17,6,17,7],[22,2,22,4],[23,6,23,7],[28,2,28,4],[30,6,30,7],[36,2,36,4],[37,6,37,7],[42,2,42,4],[44,6,44,7],[51,2,51,4],[52,6,52,7],[57,2,57,4],[59,6,59,7],[67,2,67,4],[68,6,68,7],[73,2,73,4],[75,6,75,7],[83,2,83,4],[84,6,84,7],[89,2,89,4],[91,6,91,7],[100,2,100,4],[101,6,101,7],[106,2,106,4],[108,6,108,7],[116,2,116,4],[117,6,117,7],[122,2,122,4],[124,6,124,7]]}
["Tableau de bord du Lycée :",{"$f":"RIGHT(C1,8)","v":"0"},{"$f":"TDB_ETAB!B1","v":0},null,{"v":0,"d":"0.0%"}]
[]
["Mathématiques","Répartition des proportions d'élèves pour chaque compétence (Rappel TDB_ETAB)"]
[null,"Domaines communs","Domaine qui concerne uniquement les élèves dont le score en résolution de pb est <  19",{"$nulls":3},"Domaine qui concerne uniquement les élèves dont le score en résolution de pb est >=  19"]
["Référence : Lycée","Capacité à utiliser les mathématiques dans le monde réel\nRésolution de problèmes (RP)","Automatismes\nMultiplications et comparaisons de nombres","Automatismes\nPourcentages","Automatismes\nSoustractions",null,"Niveau de maîtrise","Automatismes (seconde pro)"]
["Taux\"Maitrise insuffisante\"",{"$f":"TDB_ETAB!B28","v":{"$error":"#DIV/0!"}},{"$f":"TDB_ETAB!C28","v":{"$error":"#DIV/0!"}},{"$f":"TDB_ETAB!D28","v":{"$error":"#DIV/0!"}},{"$f":"TDB_ETAB!E28","v":{"$error":"#DIV/0!"}},null,"Taux \"à besoins\"",{"$f":"TDB_ETAB!H28","v":{"$error":"#DIV/0!"}}]
["Taux\"Maitrise partielle ou totale\"",{"$f":"TDB_ETAB!B29","v":{"$error":"#DIV/0!"}},{"$f":"TDB_ETAB!C29","v":{"$error":"#DIV/0!"}},{"$f":"TDB_ETAB!D29","v":{"$error":"#DIV/0!"}},{"$f":"TDB_ETAB!E29","v":{"$error":"#DIV/0!"}},null,"Taux \"fragile\"",{"$f":"TDB_ETAB!H29","v":{"$error":"#DIV/0!"}}]
["Total élèves évalués ",{"$f":"TDB_ETAB!B30","v":{"$error":"#DIV/0!"}},{"$f":"TDB_ETAB!C30","v":{"$error":"#DIV/0!"}},{"$f":"TDB_ETAB!D30","v":{"$error":"#DIV/0!"}},{"$f":"TDB_ETAB!E30","v":{"$error":"#DIV/0!"}},null,"Taux \"satisfaisant\"",{"$f":"TDB_ETAB!H30","v":{"$error":"#DIV/0!"}}]
[{"$nulls":6},"Total élèves évalués ",{"$f":"TDB_ETAB!H31","v":{"$error":"#DIV/0!"}}]
[null,"Domaines communs","Domaine qui concerne uniquement les élèves dont le score en résolution de pb est <  19"]
[{"$f":"CONCATENATE(\"Classe : \",Informations!$A$6)","v":"Classe : "},"Capacité à utiliser les mathématiques dans le monde réel\nRésolution de problèmes (RP)","Automatismes\nMultiplications et comparaisons de nombres","Automatismes\nPourcentages","Automatismes\nSoustractions",null,"Domaine qui concerne uniquement les élèves dont le score en résolution de pb est >=  19"]
["Taux\"Maitrise insuffisante\"",{"$f":"COUNTIF(CAP_MATHS!J:J,CONCATENATE(Informations!$A$6,\" \",Informations!$B$27))","v":0},{"$f":"COUNTIF(CAP_MATHS!L:L,CONCATENATE(Informations!$A$6,\" \",Informations!$B$27))","v":0},{"$f":"COUNTIF(CAP_MATHS!M:M,CONCATENATE(Informations!$A$6,\" \",Informations!$B$27))","v":0},{"$f":"COUNTIF(CAP_MATHS!N:N,CONCATENATE(Informations!$A$6,\" \",Informations!$B$27))","v":0},null,"Niveau de maîtrise","Automatismes (seconde pro)"]
["Taux\"Maitrise partielle ou totale\"",{"$f":"COUNTIF(CAP_MATHS!J:J,CONCATENATE(Informations!$A$6,\" \",Informations!$B$28))","v":0},{"$f":"COUNTIF(CAP_MATHS!L:L,CONCATENATE(Informations!$A$6,\" \",Informations!$B$28))","v":0},{"$f":"COUNTIF(CAP_MATHS!M:M,CONCATENATE(Informations!$A$6,\" \",Informations!$B$28))","v":0},{"$f":"COUNTIF(CAP_MATHS!N:N,CONCATENATE(Informations!$A$6,\" \",Informations!$B$28))","v":0},null,"Nb \"à besoins\"",{"$f":"COUNTIF(CAP_MATHS!K:K,CONCATENATE(Informations!$A$6,\" \",Informations!$D$27))","v":0}]
["Total élèves évalués ",{"$f":"SUM(B12:B13)","v":0},{"$f":"SUM(C12:C13)","v":0},{"$f":"SUM(D12:D13)","v":0},{"$f":"SUM(E12:E13)","v":0},null,"Nb \"fragile\"",{"$f":"COUNTIF(CAP_MATHS!K:K,CONCATENATE(Informations!$A$6,\" \",Informations!$D$28))","v":0}]
[{"$nulls":6},"Nb \"satisfaisant\"",{"$f":"COUNTIF(CAP_MATHS!K:K,CONCATENATE(Informations!$A$6,\" \",Informations!$D$29))","v":0}]
[null,"Domaines communs","Domaine qui concerne uniquement les élèves dont le score en résolution de pb est <  19",{"$nulls":3},"Total élèves évalués ",{"$f":"SUM(H13:H15)","v":0}]
[{"$f":"CONCATENATE(\"Classe : \",Informations!$A$6)","v":"Classe : "},"Capacité à utiliser les mathématiques dans le monde réel\nRésolution de problèmes (RP)","Automatismes\nMultiplications et comparaisons de nombres","Automatismes\nPourcentages","Automatismes\nSoustractions"]
["Taux\"Maitrise insuffisante\"",{"$f":"B12/B$14","v":{"$error":"#DIV/0!"}},{"$f":"C12/C$14","v":{"$error":"#DIV/0!"}},{"$error":"#DIV/0!"},{"$error":"#DIV/0!"},null,"Domaine qui concerne uniquement les élèves dont le score en résolution de pb est >=  19"]
["Taux\"Maitrise partielle ou totale\"",{"$f":"B13/B$14","v":{"$error":"#DIV/0!"}},{"$error":"#DIV/0!"},{"$error":"#DIV/0!"},{"$error":"#DIV/0!"},null,"Niveau de maîtrise","Automatismes (seconde pro)"]
["Total élèves évalués ",{"$f":"B14/B$14","v":{"$error":"#DIV/0!"}},{"$error":"#DIV/0!"},{"$error":"#DIV/0!"},{"$error":"#DIV/0!"},null,"Taux \"à besoins\"",{"$f":"H13/H$16","v":{"$error":"#DIV/0!"}}]
[{"$nulls":6},"Taux \"fragile\"",{"$f":"H14/H$16","v":{"$error":"#DIV/0!"}}]
[{"$nulls":6},"Taux \"satisfaisant\"",{"$f":"H15/H$16","v":{"$error":"#DIV/0!"}}]
[null,"Domaines communs","Domaine qui concerne uniquement les élèves dont le score en résolution de pb est <  19",{"$nulls":3},"Total élèves évalués ",{"$f":"H16/H$16","v":{"$error":"#DIV/0!"}}]
[{"$f":"CONCATENATE(\"Classe : \",Informations!$A$7)","v":"Classe : "},"Capacité à utiliser les mathématiques dans le monde réel\nRésolution de problèmes (RP)","Automatismes\nMultiplications et comparaisons de nombres","Automatismes\nPourcentages","Automatismes\nSoustractions",null,"Domaine qui concerne uniquement les élèves dont le score en résolution de pb est >=  19"]
["Taux\"Maitrise insuffisante\"",{"$f":"COUNTIF(CAP_MATHS!J:J,CONCATENATE(Informations!$A$7,\" \",Informations!$B$27))","v":0},{"$f":"COUNTIF(CAP_MATHS!L:L,CONCATENATE(Informations!$A$7,\" \",Informations!$B$27))","v":0},{"$f":"COUNTIF(CAP_MATHS!M:M,CONCATENATE(Informations!$A$7,\" \",Informations!$B$27))","v":0},{"$f":"COUNTIF(CAP_MATHS!N:N,CONCATENATE(Informations!$A$7,\" \",Informations!$B$27))","v":0},null,"Niveau de maîtrise","Automatismes (seconde pro)"]
["Taux\"Maitrise partielle ou totale\"",{"$f":"COUNTIF(CAP_MATHS!J:J,CONCATENATE(Informations!$A$7,\" \",Informations!$B$28))","v":0},{"$f":"COUNTIF(CAP_MATHS!L:L,CONCATENATE(Informations!$A$7,\" \",Informations!$B$28))","v":0},{"$f":"COUNTIF(CAP_MATHS!M:M,CONCATENATE(Informations!$A$7,\" \",Informations!$B$28))","v":0},{"$f":"COUNTIF(CAP_MATHS!N:N,CONCATENATE(Informations!$A$7,\" \",Informations!$B$28))","v":0},null,"Nb \"à besoins\"",{"$f":"COUNTIF(CAP_MATHS!K:K,CONCATENATE(Informations!$A$7,\" \",Informations!$D$27))","v":0}]
["Total élèves évalués ",{"$f":"SUM(B25:B26)","v":0},{"$f":"SUM(C25:C26)","v":0},{"$f":"SUM(D25:D26)","v":0},{"$f":"SUM(E25:E26)","v":0},null,"Nb \"fragile\"",{"$f":"COUNTIF(CAP_MATHS!K:K,CONCATENATE(Informations!$A$7,\" \",Informations!$D$28))","v":0}]
[{"$nulls":6},"Nb \"satisfaisant\"",{"$f":"COUNTIF(CAP_MATHS!K:K,CONCATENATE(Informations!$A$7,\" \",Informations!$D$29))","v":0}]
[null,"Domaines communs","Domaine qui concerne uniquement les élèves dont le score en résolution de pb est <  19",{"$nulls":3},"Total élèves évalués ",{"$f":"SUM(H26:H28)","v":0}]
[{"$f":"CONCATENATE(\"Classe : \",Informations!$A$7)","v":"Classe : "},"Capacité à utiliser les mathématiques dans le monde réel\nRésolution de problèmes (RP)","Automatismes\nMultiplications et comparaisons de nombres","Automatismes\nPourcentages","Automatismes\nSoustractions"]
["Taux\"Maitrise insuffisante\"",{"$f":"B25/B$27","v":{"$error":"#DIV/0!"}},{"$f":"C25/C$27","v":{"$error":"#DIV/0!"}},{"$error":"#DIV/0!"},{"$error":"#DIV/0!"},null,"Domaine qui concerne uniquement les élèves dont le score en résolution de pb est >=  19"]
["Taux\"Maitrise partielle ou totale\"",{"$f":"B26/B$27","v":{"$error":"#DIV/0!"}},{"$error":"#DIV/0!"},{"$error":"#DIV/0!"},{"$error":"#DIV/0!"},null,"Niveau de maîtrise","Automatismes (seconde pro)"]
["Total élèves évalués ",{"$f":"B27/B$27","v":{"$error":"#DIV/0!"}},{"$error":"#DIV/0!"},{"$error":"#DIV/0!"},{"$error":"#DIV/0!"},null,"Taux \"à besoins\"",{"$f":"H26/H$29","v":{"$error":"#DIV/0!"}}]
[{"$nulls":6},"Taux \"fragile\"",{"$f":"H27/H$29","v":{"$error":"#DIV/0!"}}]
[{"$nulls":6},"Taux \"satisfaisant\"",{"$f":"H28/H$29","v":{"$error":"#DIV/0!"}}]
[{"$nulls":6},"Total élèves évalués ",{"$f":"H29/H$29","v":{"$error":"#DIV/0!"}}]
[null,"Domaines communs","Domaine qui concerne uniquement les élèves dont le score en résolution de pb est <  19"]
[{"$f":"CONCATENATE(\"Classe : \",Informations!$A$8)","v":"Classe : "},"Capacité à utiliser les mathématiques dans le monde réel\nRésolution de problèmes (RP)","Automatismes\nMultiplications et comparaisons de nombres","Automatismes\nPourcentages","Automatismes\nSoustractions",null,"Domaine qui concerne uniquement les élèves dont le score en résolution de pb est >=  19"]
["Taux\"Maitrise insuffisante\"",{"$f":"COUNTIF(CAP_MATHS!J:J,CONCATENATE(Informations!$A$8,\" \",Informations!$B$27))","v":0},{"$f":"COUNTIF(CAP_MATHS!L:L,CONCATENATE(Informations!$A$8,\" \",Informations!$B$27))","v":0},{"$f":"COUNTIF(CAP_MATHS!M:M,CONCATENATE(Informations!$A$8,\" \",Informations!$B$27))","v":0},{"$f":"COUNTIF(CAP_MATHS!N:N,CONCATENATE(Informations!$A$8,\" \",Informations!$B$27))","v":0},null,"Niveau de maîtrise","Automatismes (seconde pro)"]
["Taux\"Maitrise partielle ou totale\"",{"$f":"COUNTIF(CAP_MATHS!J:J,CONCATENATE(Informations!$A$8,\" \",Informations!$B$28))","v":0},{"$f":"COUNTIF(CAP_MATHS!L:L,CONCATENATE(Informations!$A$8,\" \",Informations!$B$28))","v":0},{"$f":"COUNTIF(CAP_MATHS!M:M,CONCATENATE(Informations!$A$8,\" \",Informations!$B$28))","v":0},{"$f":"COUNTIF(CAP_MATHS!N:N,CONCATENATE(Informations!$A$8,\" \",Informations!$B$28))","v":0},null,"Nb \"à besoins\"",{"$f":"COUNTIF(CAP_MATHS!K:K,CONCATENATE(Informations!$A$8,\" \",Informations!$D$27))","v":0}]
["Total élèves évalués ",{"$f":"SUM(B39:B40)","v":0},{"$f":"SUM(C39:C40)","v":0},{"$f":"SUM(D39:D40)","v":0},{"$f":"SUM(E39:E40)","v":0},null,"Nb \"fragile\"",{"$f":"COUNTIF(CAP_MATHS!K:K,CONCATENATE(Informations!$A$8,\" \",Informations!$D$28))","v":0}]
[{"$nulls":6},"Nb \"satisfaisant\"",{"$f":"COUNTIF(CAP_MATHS!K:K,CONCATENATE(Informations!$A$8,\" \",Informations!$D$29))","v":0}]
[null,"Domaines communs","Domaine qui concerne uniquement les élèves dont le score en résolution de pb est <  19",{"$nulls":3},"Total élèves évalués ",{"$f":"SUM(H40:H42)","v":0}]
[{"$f":"CONCATENATE(\"Classe : \",Informations!$A$8)","v":"Classe : "},"Capacité à utiliser les mathématiques dans le monde réel\nRésolution de problèmes (RP)","Automatismes\nMultiplications et comparaisons de nombres","Automatismes\nPourcentages","Automatismes\nSoustractions"]
["Taux\"Maitrise insuffisante\"",{"$f":"B39/B$41","v":{"$error":"#DIV/0!"}},{"$f":"C39/C$41","v":{"$error":"#DIV/0!"}},{"$error":"#DIV/0!"},{"$error":"#DIV/0!"},null,"Domaine qui concerne uniquement les élèves dont le score en résolution de pb est >=  19"]
["Taux\"Maitrise partielle ou totale\"",{"$f":"B40/B$41","v":{"$error":"#DIV/0!"}},{"$error":"#DIV/0!"},{"$error":"#DIV/0!"},{"$error":"#DIV/0!"},null,"Niveau de maîtrise","Automatismes (seconde pro)"]
["Total élèves évalués ",{"$f":"B41/B$41","v":{"$error":"#DIV/0!"}},{"$error":"#DIV/0!"},{"$error":"#DIV/0!"},{"$error":"#DIV/0!"},null,"Taux \"à besoins\"",{"$f":"H40/H$43","v":{"$error":"#DIV/0!"}}]
[{"$nulls":6},"Taux \"fragile\"",{"$f":"H41/H$43","v":{"$error":"#DIV/0!"}}]
[{"$nulls":6},"Taux \"satisfaisant\"",{"$f":"H42/H$43","v":{"$error":"#DIV/0!"}}]
[{"$nulls":6},"Total élèves évalués ",{"$f":"H43/H$43","v":{"$error":"#DIV/0!"}}]
[]
[null,"Domaines communs","Domaine qui concerne uniquement les élèves dont le score en résolution de pb est <  19"]
[{"$f":"CONCATENATE(\"Classe : \",Informations!$A$9)","v":"Classe : "},"Capacité à utiliser les mathématiques dans le monde réel\nRésolution de problèmes (RP)","Automatismes\nMultiplications et comparaisons de nombres","Automatismes\nPourcentages","Automatismes\nSoustractions",null,"Domaine qui concerne uniquement les élèves dont le score en résolution de pb est >=  19"]
["Taux\"Maitrise insuffisante\"",{"$f":"COUNTIF(CAP_MATHS!J:J,CONCATENATE(Informations!$A$9,\" \",Informations!$B$27))","v":0},{"$f":"COUNTIF(CAP_MATHS!L:L,CONCATENATE(Informations!$A$9,\" \",Informations!$B$27))","v":0},{"$f":"COUNTIF(CAP_MATHS!M:M,CONCATENATE(Informations!$A$9,\" \",Informations!$B$27))","v":0},{"$f":"COUNTIF(CAP_MATHS!N:N,CONCATENATE(Informations!$A$9,\" \",Informations!$B$27))","v":0},null,"Niveau de maîtrise","Automatismes (seconde pro)"]
["Taux\"Maitrise partielle ou totale\"",{"$f":"COUNTIF(CAP_MATHS!J:J,CONCATENATE(Informations!$A$9,\" \",Informations!$B$28))","v":0},{"$f":"COUNTIF(CAP_MATHS!L:L,CONCATENATE(Informations!$A$9,\" \",Informations!$B$28))","v":0},{"$f":"COUNTIF(CAP_MATHS!M:M,CONCATENATE(Informations!$A$9,\" \",Informations!$B$28))","v":0},{"$f":"COUNTIF(CAP_MATHS!N:N,CONCATENATE(Informations!$A$9,\" \",Informations!$B$28))","v":0},null,"Nb \"à besoins\"",{"$f":"COUNTIF(CAP_MATHS!K:K,CONCATENATE(Informations!$A$9,\" \",Informations!$D$27))","v":0}]
["Total élèves évalués ",{"$f":"SUM(B54:B55)","v":0},{"$f":"SUM(C54:C55)","v":0},{"$f":"SUM(D54:D55)","v":0},{"$f":"SUM(E54:E55)","v":0},null,"Nb \"fragile\"",{"$f":"COUNTIF(CAP_MATHS!K:K,CONCATENATE(Informations!$A$9,\" \",Informations!$D$28))","v":0}]
[{"$nulls":6},"Nb \"satisfaisant\"",{"$f":"COUNTIF(CAP_MATHS!K:K,CONCATENATE(Informations!$A$9,\" \",Informations!$D$29))","v":0}]
[null,"Domaines communs","Domaine qui concerne uniquement les élèves dont le score en résolution de pb est <  19",{"$nulls":3},"Total élèves évalués ",{"$f":"SUM(H55:H57)","v":0}]
[{"$f":"CONCATENATE(\"Classe : \",Informations!$A$9)","v":"Classe : "},"Capacité à utiliser les mathématiques dans le monde réel\nRésolution de problèmes (RP)","Automatismes\nMultiplications et comparaisons de nombres","Automatismes\nPourcentages","Automatismes\nSoustractions"]
["Taux\"Maitrise insuffisante\"",{"$f":"B54/B$56","v":{"$error":"#DIV/0!"}},{"$f":"C54/C$56","v":{"$error":"#DIV/0!"}},{"$error":"#DIV/0!"},{"$error":"#DIV/0!"},null,"Domaine qui concerne uniquement les élèves dont le score en résolution de pb est >=  19"]
["Taux\"Maitrise partielle ou totale\"",{"$f":"B55/B$56","v":{"$error":"#DIV/0!"}},{"$error":"#DIV/0!"},{"$error":"#DIV/0!"},{"$error":"#DIV/0!"},null,"Niveau de maîtrise","Automatismes (seconde pro)"]
["Total élèves évalués ",{"$f":"B56/B$56","v":{"$error":"#DIV/0!"}},{"$error":"#DIV/0!"},{"$error":"#DIV/0!"},{"$error":"#DIV/0!"},null,"Taux \"à besoins\"",{"$f":"H55/H$58","v":{"$error":"#DIV/0!"}}]
[{"$nulls":6},"Taux \"fragile\"",{"$f":"H56/H$58","v":{"$error":"#DIV/0!"}}]
[{"$nulls":6},"Taux \"satisfaisant\"",{"$f":"H57/H$58","v":{"$error":"#DIV/0!"}}]
[{"$nulls":6},"Total élèves évalués ",{"$f":"H58/H$58","v":{"$error":"#DIV/0!"}}]
[]
[]
[null,"Domaines communs","Domaine qui concerne uniquement les élèves dont le score en résolution de pb est <  19"]
[{"$f":"CONCATENATE(\"Classe : \",Informations!$A$10)","v":"Classe : "},"Capacité à utiliser les mathématiques dans le monde réel\nRésolution de problèmes (RP)","Automatismes\nMultiplications et comparaisons de nombres","Automatismes\nPourcentages","Automatismes\nSoustractions",null,"Domaine qui concerne uniquement les élèves dont le score en résolution de pb est >=  19"]
["Taux\"Maitrise insuffisante\"",{"$f":"COUNTIF(CAP_MATHS!J:J,CONCATENATE(Informations!$A$10,\" \",Informations!$B$27))","v":0},{"$f":"COUNTIF(CAP_MATHS!L:L,CONCATENATE(Informations!$A$10,\" \",Informations!$B$27))","v":0},{"$f":"COUNTIF(CAP_MATHS!M:M,CONCATENATE(Informations!$A$10,\" \",Informations!$B$27))","v":0},{"$f":"COUNTIF(CAP_MATHS!N:N,CONCATENATE(Informations!$A$10,\" \",Informations!$B$27))","v":0},null,"Niveau de maîtrise","Automatismes (seconde pro)"]
["Taux\"Maitrise partielle ou totale\"",{"$f":"COUNTIF(CAP_MATHS!J:J,CONCATENATE(Informations!$A$10,\" \",Informations!$B$28))","v":0},{"$f":"COUNTIF(CAP_MATHS!L:L,CONCATENATE(Informations!$A$10,\" \",Informations!$B$28))","v":0},{"$f":"COUNTIF(CAP_MATHS!M:M,CONCATENATE(Informations!$A$10,\" \",Informations!$B$28))","v":0},{"$f":"COUNTIF(CAP_MATHS!N:N,CONCATENATE(Informations!$A$10,\" \",Informations!$B$28))","v":0},null,"Nb \"à besoins\"",{"$f":"COUNTIF(CAP_MATHS!K:K,CONCATENATE(Informations!$A$10,\" \",Informations!$D$27))","v":0}]
["Total élèves évalués ",{"$f":"SUM(B70:B71)","v":0},{"$f":"SUM(C70:C71)","v":0},{"$f":"SUM(D70:D71)","v":0},{"$f":"SUM(E70:E71)","v":0},null,"Nb \"fragile\"",{"$f":"COUNTIF(CAP_MATHS!K:K,CONCATENATE(Informations!$A$10,\" \",Informations!$D$28))","v":0}]
[{"$nulls":6},"Nb \"satisfaisant\"",{"$f":"COUNTIF(CAP_MATHS!K:K,CONCATENATE(Informations!$A$10,\" \",Informations!$D$29))","v":0}]
[null,"Domaines communs","Domaine qui concerne uniquement les élèves dont le score en résolution de pb est <  19",{"$nulls":3},"Total élèves évalués ",{"$f":"SUM(H71:H73)","v":0}]
[{"$f":"CONCATENATE(\"Classe : \",Informations!$A$10)","v":"Classe : "},"Capacité à utiliser les mathématiques dans le monde réel\nRésolution de problèmes (RP)","Automatismes\nMultiplications et comparaisons de nombres","Automatismes\nPourcentages","Automatismes\nSoustractions"]
["Taux\"Maitrise insuffisante\"",{"$f":"B70/B$72","v":{"$error":"#DIV/0!"}},{"$f":"C70/C$72","v":{"$error":"#DIV/0!"}},{"$error":"#DIV/0!"},{"$error":"#DIV/0!"},null,"Domaine qui concerne uniquement les élèves dont le score en résolution de pb est >=  19"]
["Taux\"Maitrise partielle ou totale\"",{"$f":"B71/B$72","v":{"$error":"#DIV/0!"}},{"$error":"#DIV/0!"},{"$error":"#DIV/0!"},{"$error":"#DIV/0!"},null,"Niveau de maîtrise","Automatismes (seconde pro)"]
["Total élèves évalués ",{"$error":"#DIV/0!"},{"$f":"C72/C$72","v":{"$error":"#DIV/0!"}},{"$error":"#DIV/0!"},{"$error":"#DIV/0!"},null,"Taux \"à besoins\"",{"$f":"H71/H$74","v":{"$error":"#DIV/0!"}}]
[{"$nulls":6},"Taux \"fragile\"",{"$f":"H72/H$74","v":{"$error":"#DIV/0!"}}]
[{"$nulls":6},"Taux \"satisfaisant\"",{"$f":"H73/H$74","v":{"$error":"#DIV/0!"}}]
[{"$nulls":6},"Total élèves évalués ",{"$f":"H74/H$74","v":{"$error":"#DIV/0!"}}]
[]
[]
[null,"Domaines communs","Domaine qui concerne uniquement les élèves dont le score en résolution de pb est <  19"]
[{"$f":"CONCATENATE(\"Classe : \",Informations!$A$11)","v":"Classe : "},"Capacité à utiliser les mathématiques dans le monde réel\nRésolution de problèmes (RP)","Automatismes\nMultiplications et comparaisons de nombres","Automatismes\nPourcentages","Automatismes\nSoustractions",null,"Domaine qui concerne uniquement les élèves dont le score en résolution de pb est >=  19"]
["Taux\"Maitrise insuffisante\"",{"$f":"COUNTIF(CAP_MATHS!J:J,CONCATENATE(Informations!$A$11,\" \",Informations!$B$27))","v":0},{"$f":"COUNTIF(CAP_MATHS!L:L,CONCATENATE(Informations!$A$11,\" \",Informations!$B$27))","v":0},{"$f":"COUNTIF(CAP_MATHS!M:M,CONCATENATE(Informations!$A$11,\" \",Informations!$B$27))","v":0},{"$f":"COUNTIF(CAP_MATHS!N:N,CONCATENATE(Informations!$A$11,\" \",Informations!$B$27))","v":0},null,"Niveau de maîtrise","Automatismes (seconde pro)"]
["Taux\"Maitrise partielle ou totale\"",{"$f":"COUNTIF(CAP_MATHS!J:J,CONCATENATE(Informations!$A$11,\" \",Informations!$B$28))","v":0},{"$f":"COUNTIF(CAP_MATHS!L:L,CONCATENATE(Informations!$A$11,\" \",Informations!$B$28))","v":0},{"$f":"COUNTIF(CAP_MATHS!M:M,CONCATENATE(Informations!$A$11,\" \",Informations!$B$28))","v":0},{"$f":"COUNTIF(CAP_MATHS!N:N,CONCATENATE(Informations!$A$11,\" \",Informations!$B$28))","v":0},null,"Nb \"à besoins\"",{"$f":"COUNTIF(CAP_MATHS!K:K,CONCATENATE(Informations!$A$11,\" \",Informations!$D$27))","v":0}]
["Total élèves évalués ",{"$f":"SUM(B86:B87)","v":0},{"$f":"SUM(C86:C87)","v":0},{"$f":"SUM(D86:D87)","v":0},{"$f":"SUM(E86:E87)","v":0},null,"Nb \"fragile\"",{"$f":"COUNTIF(CAP_MATHS!K:K,CONCATENATE(Informations!$A$11,\" \",Informations!$D$28))","v":0}]
[{"$nulls":6},"Nb \"satisfaisant\"",{"$f":"COUNTIF(CAP_MATHS!K:K,CONCATENATE(Informations!$A$11,\" \",Informations!$D$29))","v":0}]
[null,"Domaines communs","Domaine qui concerne uniquement les élèves dont le score en résolution de pb est <  19",{"$nulls":3},"Total élèves évalués ",{"$f":"SUM(H87:H89)","v":0}]
[{"$f":"CONCATENATE(\"Classe : \",Informations!$A$11)","v":"Classe : "},"Capacité à utiliser les mathématiques dans le monde réel\nRésolution de problèmes (RP)","Automatismes\nMultiplications et comparaisons de nombres","Automatismes\nPourcentages","Automatismes\nSoustractions"]
["Taux\"Maitrise insuffisante\"",{"$f":"B86/B$88","v":{"$error":"#DIV/0!"}},{"$f":"C86/C$88","v":{"$error":"#DIV/0!"}},{"$error":"#DIV/0!"},{"$error":"#DIV/0!"},null,"Domaine qui concerne uniquement les élèves dont le score en résolution de pb est >=  19"]
["Taux\"Maitrise partielle ou totale\"",{"$f":"B87/B$88","v":{"$error":"#DIV/0!"}},{"$error":"#DIV/0!"},{"$error":"#DIV/0!"},{"$error":"#DIV/0!"},null,"Niveau de maîtrise","Automatismes (seconde pro)"]
["Total élèves évalués ",{"$f":"B88/B$88","v":{"$error":"#DIV/0!"}},{"$error":"#DIV/0!"},{"$error":"#DIV/0!"},{"$error":"#DIV/0!"},null,"Taux \"à besoins\"",{"$f":"H87/H$90","v":{"$error":"#DIV/0!"}}]
[{"$nulls":6},"Taux \"fragile\"",{"$f":"H88/H$90","v":{"$error":"#DIV/0!"}}]
[{"$nulls":6},"Taux \"satisfaisant\"",{"$f":"H89/H$90","v":{"$error":"#DIV/0!"}}]
[{"$nulls":6},"Total élèves évalués ",{"$f":"H90/H$90","v":{"$error":"#DIV/0!"}}]
[]
[]
[]
[null,"Domaines communs","Domaine qui concerne uniquement les élèves dont le score en résolution de pb est <  19"]
[{"$f":"CONCATENATE(\"Classe : \",Informations!$A$12)","v":"Classe : "},"Capacité à utiliser les mathématiques dans le monde réel\nRésolution de problèmes (RP)","Automatismes\nMultiplications et comparaisons de nombres","Automatismes\nPourcentages","Automatismes\nSoustractions",null,"Domaine qui concerne uniquement les élèves dont le score en résolution de pb est >=  19"]
["Taux\"Maitrise insuffisante\"",{"$f":"COUNTIF(CAP_MATHS!J:J,CONCATENATE(Informations!$A$12,\" \",Informations!$B$27))","v":0},{"$f":"COUNTIF(CAP_MATHS!L:L,CONCATENATE(Informations!$A$12,\" \",Informations!$B$27))","v":0},{"$f":"COUNTIF(CAP_MATHS!M:M,CONCATENATE(Informations!$A$12,\" \",Informations!$B$27))","v":0},{"$f":"COUNTIF(CAP_MATHS!N:N,CONCATENATE(Informations!$A$12,\" \",Informations!$B$27))","v":0},null,"Niveau de maîtrise","Automatismes (seconde pro)"]
["Taux\"Maitrise partielle ou totale\"",{"$f":"COUNTIF(CAP_MATHS!J:J,CONCATENATE(Informations!$A$12,\" \",Informations!$B$28))","v":0},{"$f":"COUNTIF(CAP_MATHS!L:L,CONCATENATE(Informations!$A$12,\" \",Informations!$B$28))","v":0},{"$f":"COUNTIF(CAP_MATHS!M:M,CONCATENATE(Informations!$A$12,\" \",Informations!$B$28))","v":0},{"$f":"COUNTIF(CAP_MATHS!N:N,CONCATENATE(Informations!$A$12,\" \",Informations!$B$28))","v":0},null,"Nb \"à besoins\"",{"$f":"COUNTIF(CAP_MATHS!K:K,CONCATENATE(Informations!$A$12,\" \",Informations!$D$27))","v":0}]
["Total élèves évalués ",{"$f":"SUM(B103:B104)","v":0},{"$f":"SUM(C103:C104)","v":0},{"$f":"SUM(D103:D104)","v":0},{"$f":"SUM(E103:E104)","v":0},null,"Nb \"fragile\"",{"$f":"COUNTIF(CAP_MATHS!K:K,CONCATENATE(Informations!$A$12,\" \",Informations!$D$28))","v":0}]
[{"$nulls":6},"Nb \"satisfaisant\"",{"$f":"COUNTIF(CAP_MATHS!K:K,CONCATENATE(Informations!$A$12,\" \",Informations!$D$29))","v":0}]
[null,"Domaines communs","Domaine qui concerne uniquement les élèves dont le score en résolution de pb est <  19",{"$nulls":3},"Total élèves évalués ",{"$f":"SUM(H104:H106)","v":0}]
[{"$f":"CONCATENATE(\"Classe : \",Informations!$A$12)","v":"Classe : "},"Capacité à utiliser les mathématiques dans le monde réel\nRésolution de problèmes (RP)","Automatismes\nMultiplications et comparaisons de nombres","Automatismes\nPourcentages","Automatismes\nSoustractions"]
["Taux\"Maitrise insuffisante\"",{"$f":"B103/B$105","v":{"$error":"#DIV/0!"}},{"$f":"C103/C$105","v":{"$error":"#DIV/0!"}},{"$error":"#DIV/0!"},{"$error":"#DIV/0!"},null,"Domaine qui concerne uniquement les élèves dont le score en résolution de pb est >=  19"]
["Taux\"Maitrise partielle ou totale\"",{"$f":"B104/B$105","v":{"$error":"#DIV/0!"}},{"$error":"#DIV/0!"},{"$error":"#DIV/0!"},{"$error":"#DIV/0!"},null,"Niveau de maîtrise","Automatismes (seconde pro)"]
["Total élèves évalués ",{"$f":"B105/B$105","v":{"$error":"#DIV/0!"}},{"$error":"#DIV/0!"},{"$error":"#DIV/0!"},{"$error":"#DIV/0!"},null,"Taux \"à besoins\"",{"$f":"H104/H$107","v":{"$error":"#DIV/0!"}}]
[{"$nulls":6},"Taux \"fragile\"",{"$f":"H105/H$107","v":{"$error":"#DIV/0!"}}]
[{"$nulls":6},"Taux \"satisfaisant\"",{"$f":"H106/H$107","v":{"$error":"#DIV/0!"}}]
[{"$nulls":6},"Total élèves évalués ",{"$f":"H107/H$107","v":{"$error":"#DIV/0!"}}]
[]
[]
[null,"Domaines communs","Domaine qui concerne uniquement les élèves dont le score en résolution de pb est <  19"]
[{"$f":"CONCATENATE(\"Classe : \",Informations!$A$13)","v":"Classe : "},"Capacité à utiliser les mathématiques dans le monde réel\nRésolution de problèmes (RP)","Automatismes\nMultiplications et comparaisons de nombres","Automatismes\nPourcentages","Automatismes\nSoustractions",null,"Domaine qui concerne uniquement les élèves dont le score en résolution de pb est >=  19"]
["Taux\"Maitrise insuffisante\"",{"$f":"COUNTIF(CAP_MATHS!J:J,CONCATENATE(Informations!$A$13,\" \",Informations!$B$27))","v":0},{"$f":"COUNTIF(CAP_MATHS!L:L,CONCATENATE(Informations!$A$13,\" \",Informations!$B$27))","v":0},{"$f":"COUNTIF(CAP_MATHS!M:M,CONCATENATE(Informations!$A$13,\" \",Informations!$B$27))","v":0},{"$f":"COUNTIF(CAP_MATHS!N:N,CONCATENATE(Informations!$A$13,\" \",Informations!$B$27))","v":0},null,"Niveau de maîtrise","Automatismes (seconde pro)"]
["Taux\"Maitrise partielle ou totale\"",{"$f":"COUNTIF(CAP_MATHS!J:J,CONCATENATE(Informations!$A$13,\" \",Informations!$B$28))","v":0},{"$f":"COUNTIF(CAP_MATHS!L:L,CONCATENATE(Informations!$A$13,\" \",Informations!$B$28))","v":0},{"$f":"COUNTIF(CAP_MATHS!M:M,CONCATENATE(Informations!$A$13,\" \",Informations!$B$28))","v":0},{"$f":"COUNTIF(CAP_MATHS!N:N,CONCATENATE(Informations!$A$13,\" \",Informations!$B$28))","v":0},null,"Nb \"à besoins\"",{"$f":"COUNTIF(CAP_MATHS!K:K,CONCATENATE(Informations!$A$13,\" \",Informations!$D$27))","v":0}]
["Total élèves évalués ",{"$f":"SUM(B119:B120)","v":0},{"$f":"SUM(C119:C120)","v":0},{"$f":"SUM(D119:D120)","v":0},{"$f":"SUM(E119:E120)","v":0},null,"Nb \"fragile\"",{"$f":"COUNTIF(CAP_MATHS!K:K,CONCATENATE(Informations!$A$13,\" \",Informations!$D$28))","v":0}]
[{"$nulls":6},"Nb \"satisfaisant\"",{"$f":"COUNTIF(CAP_MATHS!K:K,CONCATENATE(Informations!$A$13,\" \",Informations!$D$29))","v":0}]
[null,"Domaines communs","Domaine qui concerne uniquement les élèves dont le score en résolution de pb est <  19",{"$nulls":3},"Total élèves évalués ",{"$f":"SUM(H120:H122)","v":0}]
[{"$f":"CONCATENATE(\"Classe : \",Informations!$A$13)","v":"Classe : "},"Capacité à utiliser les mathématiques dans le monde réel\nRésolution de problèmes (RP)","Automatismes\nMultiplications et comparaisons de nombres","Automatismes\nPourcentages","Automatismes\nSoustractions"]
["Taux\"Maitrise insuffisante\"",{"$f":"B119/B$121","v":{"$error":"#DIV/0!"}},{"$f":"C119/C$121","v":{"$error":"#DIV/0!"}},{"$error":"#DIV/0!"},{"$error":"#DIV/0!"},null,"Domaine qui concerne uniquement les élèves dont le score en résolution de pb est >=  19"]
["Taux\"Maitrise partielle ou totale\"",{"$f":"B120/B$121","v":{"$error":"#DIV/0!"}},{"$error":"#DIV/0!"},{"$error":"#DIV/0!"},{"$error":"#DIV/0!"},null,"Niveau de maîtrise","Automatismes (seconde pro)"]
["Total élèves évalués ",{"$f":"B121/B$121","v":{"$error":"#DIV/0!"}},{"$error":"#DIV/0!"},{"$error":"#DIV/0!"},{"$error":"#DIV/0!"},null,"Taux \"à besoins\"",{"$f":"H120/H$123","v":{"$error":"#DIV/0!"}}]
[{"$nulls":6},"Taux \"fragile\"",{"$f":"H121/H$123","v":{"$error":"#DIV/0!"}}]
[{"$nulls":6},"Taux \"satisfaisant\"",{"$f":"H122/H$123","v":{"$error":"#DIV/0!"}}]
[{"$nulls":6},"Total élèves évalués ",{"$f":"H123/H$123","v":{"$error":"#DIV/0!"}}]

{"sheet":"CAP_FRANCAIS","index":4,"n_rows":0,"n_cols":0,"rows_kept":0}

{"sheet":"CAP_MATHS","index":5,"n_rows":0,"n_cols":0,"rows_kept":0}